Workbook

Sheet Neptolux SWE
A1: Kabeldimensionering och belastning | I1: Projekt:
A2: ='Neptolux FIN'!A2 -> v 1.1
A3: Nepto 3K | I3: Datum:
B4: Lepo | E4: Antal | F4: Konsumtion, mA
A5: Nepto 3K | B5: 60 | E5: 1 | F5: =E5*B5 -> 60 | I5: Version:
A6: Linjekort (linje 2) | B6: 15 | E6: 0 | F6: =E6*B6 -> 0
A7: Nätverk kort (HedRing.net) | B7: 40 | E7: 0 | F7: 0 | I7: Nummer:
A8: NL-KLG | B8: 60 | E8: 0 | F8: 0
A10: Totalt: | F10: =SUM(F5:F9) -> 60
S13: Maxbelastning kalkyl
A15: Nödbelysning | B15: Lepo | C15: Lataus/vikaledi | E15: Linje 1 | G15: Linje 2 | J15: Manuell | S15: Neptolux- utrustning | W15: Linje 1 | AA15: Linje 2
C16: päällä | E16: Antal | F16: Ström, mA | G16: Antal | H16: Ström, mA | T16: I, [mA] | U16: NU | V16: P, [W] | W16: Antal | X16: NU | Y16: Kraft, W | Z16: Ström, mA | AA16: Antal | AB16: NU | AC16: Kraft, W | AD16: Ström, mA
A17: N68-C/ N68-O (0) FABRIKSINSTÄLLNING | B17: 7.8 | C17: 0.4 | E17: 0 | F17: =(B17*E17) -> 0 | G17: 0 | H17: =(B17*G17) -> 0 | J17: Med denna räknare bestäms: | S17: N68-C/N68-O 24h, Normal kraft | T17: =B17 -> 7.8 | U17: 4.8 | V17: 0.04 | W17: =(E17-W18-W19-W20) -> 0 | X17: =(W17*U17) -> 0 | Y17: =(W17*0.25) -> 0 | Z17: =(W17*T17) -> 0 | AA17: =(G17-AA18-AA19-AA20) -> 0 | AB17: =(AA17*Y17) -> 0 | AC17: =(AA17*0.25) -> 0 | AD17: =(AA17*T17) -> 0
A18: N68-C/ N68-O (1) | B18: 11.04 | C18: 0.4 | E18: 0 | F18: =(B18*E18) -> 0 | G18: 0 | H18: 0 | J18: Nepto 3K- centralen energiförbrukning | S18: N68-C/N68-O 12h, Normal kraft | T18: =(T17+4.7) -> 12.5 | U18: =(U17+2) -> 6.8 | V18: 0.96 | W18: 0 | X18: =(W18*U18) -> 0 | Y18: 0 | Z18: 0 | AA18: 0 | AB18: =(AA18*Y18) -> 0 | AC18: 0 | AD18: =(AA18*T18) -> 0
A19: N68-C/ N68-O (2) | B19: 14.28 | C19: 0.4 | E19: 0 | F19: 0 | G19: 0 | H19: 0 | J19: Linje belastning | S19: N68-C/N68-O 24h, Hi-Power | T19: =(T17+4.7) -> 12.5 | U19: =(U17+2) -> 6.8 | V19: 0.04 | W19: 0 | X19: 0 | Y19: =(W19*0.25) -> 0 | Z19: 0 | AA19: 0 | AB19: 0 | AC19: =(AA19*0.25) -> 0 | AD19: =(AA19*T19) -> 0
A20: N68-C/ N68-O (3) | B20: 17.52 | C20: 0.4 | E20: 0 | F20: 0 | G20: 0 | H20: 0 | J20: Linje maxlängd | S20: N68-C/N68-O 12h, Hi-Power | T20: =(T17+21.7) -> 29.5 | U20: =(U17+13) -> 17.8 | V20: 0.96 | W20: 0 | X20: 0 | Y20: =(W20*0.25) -> 0 | Z20: 0 | AA20: 0 | AB20: 0 | AC20: =(AA20*0.25) -> 0 | AD20: 0
A21: N68-C/ N68-O (4) | B21: 24 | C21: 0.4 | E21: 0 | F21: 0 | G21: 0 | H21: 0 | J21: Central batteri dimensionering | S21: N20 24h, Normal kraft | T21: =B29 -> 12.7 | U21: 7.9 | V21: 0.25 | W21: =(E29-W22) -> 0 | X21: 0 | Y21: =(W21*0.25) -> 0 | Z21: 0 | AA21: =(G29-AA22) -> 0 | AB21: 0 | AC21: =(AA21*0.25) -> 0 | AD21: 0
A22: N68-C/ N68-O (5) | B22: 30.48 | C22: 0.4 | E22: 0 | F22: 0 | G22: 0 | H22: 0 | S22: N20 12h, Normal kraft | T22: =(T21+4.7) -> 17.4 | U22: =(U21+2) -> 9.9 | V22: 0.25 | W22: 0 | X22: 0 | Y22: =(W22*0.25) -> 0 | Z22: 0 | AA22: 0 | AB22: 0 | AC22: =(AA22*0.25) -> 0 | AD22: 0
A23: N68-C/ N68-O (6) | B23: 36.312 | C23: 0.4 | E23: 0 | F23: 0 | G23: 0 | H23: 0 | J23: 1. Insätt mängden centraler | S23: N40 24h, Normal kraft | T23: =B37 -> 20.4 | U23: 12.6 | V23: 0.53 | W23: =(E37-W24) -> 0 | X23: 0 | Y23: =(W23*0.53) -> 0 | Z23: 0 | AA23: =(G37-AA24) -> 0 | AB23: 0 | AC23: =(AA23*0.53) -> 0 | AD23: 0
A24: N68-C/ N68-O (7) AKTIVT LÄGE | B24: 36.312 | C24: 0.4 | E24: 0 | F24: 0 | G24: 0 | H24: 0 | J24: 2. Insätt armaturtyperna för varje linje. Standardljusstyrkan är märkt med bold | S24: N40 12h, Normal kraft | T24: =(T23+4.7) -> 25.1 | U24: =(U23+2) -> 14.6 | V24: 0.53 | W24: 0 | X24: 0 | Y24: =(W24*0.53) -> 0 | Z24: 0 | AA24: 0 | AB24: 0 | AC24: =(AA24*0.53) -> 0 | AD24: 0
A25: N20 / N20-X (0) | B25: 6.1 | C25: 0.4 | E25: 0 | F25: 0 | G25: 0 | H25: 0 | J25: 3. Tabellen meddelar ifall maxbelastning eller maxmängd överskrids | S25: N68-C-3/N68-O-3 24h, Normal kraft | T25: =B41 -> 22 | U25: 13.6 | V25: 0.04 | W25: =(E41-W26-W27-W28) -> 0 | X25: 0 | Y25: =(W25*0.25) -> 0 | Z25: 0 | AA25: =(G41-AA26-AA27-AA28) -> 0 | AB25: 0 | AC25: =(AA25*0.25) -> 0 | AD25: 0
A26: N20 / N20-X (1) | B26: 7.333333333 | C26: 0.4 | E26: 0 | F26: 0 | G26: 0 | H26: 0 | J26: 4. Mata in linjens beräknade maxlängd på rad 148 (distansen från centralen till den bortersta armaturen) | S26: N68-C-3/N68-O-3 12h, Normal kraft | T26: =(T25+17.1) -> 39.1 | U26: =(U25+11) -> 24.6 | V26: 0.96 | W26: 0 | X26: 0 | Y26: 0 | Z26: 0 | AA26: 0 | AB26: 0 | AC26: 0 | AD26: 0
A27: N20 / N20-X (2) | B27: 8.566666667 | C27: 0.4 | E27: 0 | F27: 0 | G27: 0 | H27: 0 | J27: 5. Tabellen använder det i paragraf 2 insatta värden och meddelar för varje kabeltyp, ifall belastningen är inom lämpliga värden | S27: N68-C-3/N68-O-3 24h, Hi-Power | T27: =(T25+4.7) -> 26.7 | U27: =(U25+11) -> 24.6 | V27: 0.04 | W27: 0 | X27: 0 | Y27: 0 | Z27: 0 | AA27: 0 | AB27: 0 | AC27: 0 | AD27: 0
A28: N20 / N20-X (3) | B28: 9.8 | C28: 0.4 | E28: 0 | F28: 0 | G28: 0 | H28: 0 | S28: N68-C-3/N68-O-3 12h, Hi-Power | T28: =(T25+24.1) -> 46.1 | U28: =(U25+15) -> 28.6 | V28: 0.96 | W28: 0 | X28: 0 | Y28: 0 | Z28: 0 | AA28: 0 | AB28: 0 | AC28: 0 | AD28: 0
A29: N20 / N20-X (4) FABRIKSINSTÄLLNING | B29: 12.7 | C29: 0.4 | E29: 0 | F29: 0 | G29: 0 | H29: 0 | J29: 6. Det är möjligt att använda sig av inställning för Hi-Power eller 12h laddning, som ökar linjens maxbelastning under laddning. | S29: N20-3 24h, Normal kraft | T29: =B53 -> 20.40666667 | U29: 12.8 | V29: 0.25 | W29: =(E53-W30) -> 0 | X29: 0 | Y29: 0 | Z29: =(W29*T29) -> 0 | AA29: =(G53-AA30) -> 0 | AB29: 0 | AC29: 0 | AD29: 0
A30: N20 / N20-X (5) | B30: 15.35 | C30: 0.4 | E30: 0 | F30: 0 | G30: 0 | H30: 0 | S30: N20-3 12h, Normal kraft | T30: =(T29+17.1) -> 37.50666667 | U30: =(U29+11) -> 23.8 | V30: 0.25 | W30: 0 | X30: 0 | Y30: 0 | Z30: =(W30*T30) -> 0 | AA30: 0 | AB30: 0 | AC30: 0 | AD30: 0
A31: N20 / N20-X (6) | B31: 18.1 | C31: 0.4 | E31: 0 | F31: 0 | G31: 0 | H31: 0 | J31: Använd vid behov hjälptabellen till höger för att definiera maxbelastningen under laddning. Tabellen använder de matade värdena och tar dem i beaktande för att definiera kabeltyp (de aktiva rutorna har en mörkare färg). | S31: N40-3 24h, Normal kraft | T31: =B61 -> 28.10666667 | U31: 19.3 | V31: 0.53 | W31: =(E61-W32) -> 0 | X31: 0 | Y31: 0 | Z31: 0 | AA31: =(G53-AA32) -> 0 | AB31: 0 | AC31: 0 | AD31: 0
A32: N20 / N20-X (7) | B32: 12.7 | C32: 0.4 | E32: 0 | F32: 0 | G32: 0 | H32: 0 | S32: N40-3 12h, Normal kraft | T32: =(T31+17.1) -> 45.20666667 | U32: =(U31+11) -> 30.3 | V32: 0.53 | W32: 0 | X32: 0 | Y32: 0 | Z32: =(W32*T32) -> 0 | AA32: 0 | AB32: 0 | AC32: 0 | AD32: 0
A33: N40 / N40-X (0) | B33: 6.1 | C33: 0.4 | E33: 0 | F33: 0 | G33: 0 | H33: 0 | S33: N55 24h, Normal kraft | T33: =B81 -> 6.1 | U33: 3.8 | V33: 0.04 | W33: =(E81-W34-W35-W36) -> 0 | X33: 0 | Y33: 0 | Z33: 0 | AA33: =(G81-AA34-AA35-AA36) -> 0 | AB33: 0 | AC33: 0 | AD33: 0
A34: N40 / N40-X (1) | B34: 8.388 | C34: 0.4 | E34: 0 | F34: 0 | G34: 0 | H34: 0 | S34: N55 12h, Normal kraft | T34: 9.7 | U34: =(U33+2) -> 5.8 | V34: 0.96 | W34: 0 | X34: 0 | Y34: 0 | Z34: =(W34*T34) -> 0 | AA34: 0 | AB34: 0 | AC34: 0 | AD34: 0
A35: N40 / N40-X (2) | B35: 11.82 | C35: 0.4 | E35: 0 | F35: 0 | G35: 0 | H35: 0 | J35: Central batteri | S35: N55 24h, Hi-Power | T35: 13.8 | U35: =(U33+2) -> 5.8 | V35: 0.04 | W35: 0 | X35: 0 | Y35: 0 | Z35: =(W35*T35) -> 0 | AA35: 0 | AB35: 0 | AC35: 0 | AD35: 0
A36: N40 / N40-X (3) | B36: 15.252 | C36: 0.4 | E36: 0 | F36: 0 | G36: 0 | H36: 0 | J36: 1. Då man definierar belastningen för kabeln, bör armaturernas värden för aktivt läge användas | S36: N55 12h, Hi-Power | T36: 32 | U36: =(U33+13) -> 16.8 | V36: 0.96 | W36: 0 | X36: 0 | Y36: 0 | Z36: =(W36*T36) -> 0 | AA36: 0 | AB36: 0 | AC36: 0 | AD36: 0
A37: N40 / N40-X (4) FABRIKSINSTÄLLNING | B37: 20.4 | C37: 0.4 | E37: 0 | F37: 0 | G37: 0 | H37: 0 | J37: 2. Märk mängden av linjens säkerhetsljus- och hänvisningsarmaturer på raden ”AKTIVT LÄGE”. På raden ”FABRIKSINSTÄLLNING” sätts mängden hänvisningsarmaturer. | S37: N55-3 24h, Normal kraft | T37: =B89 -> 9.7 | U37: 6 | V37: 0.04 | W37: =(E89-W38-W39-W40) -> 0 | X37: 0 | Y37: 0 | Z37: 0 | AA37: =(G89-AA38-AA39-AA40) -> 0 | AB37: 0 | AC37: 0 | AD37: 0
A38: N40 / N40-X (5) | B38: 23.26 | C38: 0.4 | E38: 0 | F38: 0 | G38: 0 | H38: 0 | S38: N55-3 12h, Normal kraft | T38: 28.3 | U38: =(U37+11) -> 17 | V38: 0.96 | W38: 0 | X38: 0 | Y38: 0 | Z38: =(W38*T38) -> 0 | AA38: 0 | AB38: 0 | AC38: 0 | AD38: 0
A39: N40 / N40-X (6) | B39: 26.12 | C39: 0.4 | E39: 0 | F39: 0 | G39: 0 | H39: 0 | J39: 3. Då man använder sig av ett centralbatterisystem, bör tillräcklig drifttid för batterierna definieras | S39: N55-3 24h, Hi-Power | T39: 13.8 | U39: =(U37+11) -> 17 | V39: 0.04 | W39: 0 | X39: 0 | Y39: 0 | Z39: =(W39*T39) -> 0 | AA39: 0 | AB39: 0 | AC39: 0 | AD39: 0
A40: N40 / N40-X (7) | B40: 20.4 | C40: 0.4 | E40: 0 | F40: 0 | G40: 0 | H40: 0 | J40: 4. Mata in önskad ”drifttid” samt ”använd batteristorlek” i kalkylatorn | S40: N55-3 12h, Hi-Power | T40: 32 | U40: =(U37+15) -> 21 | V40: 0.96 | W40: 0 | X40: 0 | Y40: 0 | Z40: =(W40*T40) -> 0 | AA40: 0 | AB40: 0 | AC40: 0 | AD40: 0
A41: N68-C3/ N68-O3 (0) FABRIKSINSTÄLLNING | B41: 22 | C41: 0.4 | E41: 0 | F41: 0 | G41: 0 | H41: 0 | J41: 5. Kalkylatorn meddelar ifall tillräcklig batteristorlek är vald | S41: N89-C/N89-O 24h, Normal kraft | T41: =B97 -> 16.5 | U41: 10.2 | V41: 0.08 | W41: =(E97-W42) -> 0 | X41: 0 | Y41: 0 | Z41: 0 | AA41: =(G97-AA42) -> 0 | AB41: 0 | AC41: 0 | AD41: 0
A42: N68-C3/ N68-O3 (1) | B42: 25.24 | C42: 0.4 | E42: 0 | F42: 0 | G42: 0 | H42: 0 | S42: N89-C/N89-O 12h, Normal kraft | T42: =(T41+11) -> 27.5 | U42: =(U41+6.5) -> 16.7 | V42: 6.82 | W42: 0 | X42: 0 | Y42: 0 | Z42: =(W42*T42) -> 0 | AA42: 0 | AB42: 0 | AC42: 0 | AD42: 0
A43: N68-C3/ N68-O3 (2) | B43: 28.48 | C43: 0.4 | E43: 0 | F43: 0 | G43: 0 | H43: 0 | S43: N89-C-3/N89-O-3 24h, Normal kraft | T43: 44.5 | U43: 27.6 | V43: 0.08 | W43: =(E105-W44) -> 0 | X43: 0 | Y43: 0 | Z43: 0 | AA43: =(G105-AA44) -> 0 | AB43: 0 | AC43: 0 | AD43: 0
A44: N68-C3/ N68-O3 (3) | B44: 31.72 | C44: 0.4 | E44: 0 | F44: 0 | G44: 0 | H44: 0 | S44: N89-C-3/N89-O-3 12h, Normal kraft | T44: =(T43+36) -> 80.5 | U44: =(U43+22.5) -> 50.1 | V44: 6.82 | W44: 0 | X44: 0 | Y44: 0 | Z44: =(W44*T44) -> 0 | AA44: 0 | AB44: 0 | AC44: 0 | AD44: 0
A45: N68-C3/ N68-O3 (4) | B45: 38.2 | C45: 0.4 | E45: 0 | F45: 0 | G45: 0 | H45: 0 | S45: N40C 24h, Normal kraft | T45: =B117 -> 50.5 | U45: 31.3 | V45: 0.08 | W45: =(E117-W46) -> 0 | X45: 0 | Y45: 0 | Z45: 0 | AA45: =(G117-AA46) -> 0 | AB45: 0 | AC45: 0 | AD45: 0
A46: N68-C3/ N68-O3 (5) | B46: 44.68 | C46: 0.4 | E46: 0 | F46: 0 | G46: 0 | H46: 0 | S46: N40C 12h, Normal kraft | T46: =(T45+11) -> 61.5 | U46: =(U45+6.5) -> 37.8 | V46: 6.82 | W46: 0 | X46: 0 | Y46: 0 | Z46: =(W46*T46) -> 0 | AA46: 0 | AB46: 0 | AC46: 0 | AD46: 0
A47: N68-C3/ N68-O3 (6) | B47: 50.512 | C47: 0.4 | E47: 0 | F47: 0 | G47: 0 | H47: 0 | S47: N40C-3 24h, Normal kraft | T47: 78.5 | U47: =(31.3+6.8) -> 38.1 | V47: 0.08 | W47: =(E125-W48) -> 0 | X47: 0 | Y47: 0 | Z47: 0 | AA47: =(G125-AA48) -> 0 | AB47: 0 | AC47: 0 | AD47: 0
A48: N68-C3/ N68-O3 (7) AKTIVT LÄGE | B48: 50.512 | C48: 0.4 | E48: 0 | F48: 0 | G48: 0 | H48: 0 | S48: N40C-3 12h, Normal kraft | T48: =(78.5+36) -> 114.5 | U48: =(48.7+22.5) -> 71.2 | V48: 6.82 | W48: 0 | X48: 0 | Y48: 0 | Z48: 0 | AA48: 0 | AB48: 0 | AC48: 0 | AD48: 0
A49: N20-3 / N20-X3 (0) | B49: 13.80666667 | C49: 0.4 | E49: 0 | F49: 0 | G49: 0 | H49: 0 | S49: N70 24h, Normal kraft | T49: =B69 -> 50.5 | U49: 31.3 | V49: 0.08 | W49: =(E69-W50) -> 0 | X49: 0 | Y49: 0 | Z49: =(W49*T49) -> 0 | AA49: =(G69-AA50) -> 0 | AB49: 0 | AC49: 0 | AD49: 0
A50: N20-3 / N20-X3 (1) | B50: 15.04 | C50: 0.4 | E50: 0 | F50: 0 | G50: 0 | H50: 0 | S50: N70 12h, Normal kraft | T50: =(50.5+11) -> 61.5 | U50: =(31.3+6.8) -> 38.1 | V50: 0.92 | W50: 0 | X50: 0 | Y50: 0 | Z50: =(W50*T50) -> 0 | AA50: 0 | AB50: 0 | AC50: 0 | AD50: 0
A51: N20-3 / N20-X3 (2) | B51: 16.27333333 | C51: 0.4 | E51: 0 | F51: 0 | G51: 0 | H51: 0 | S51: N70-3 24h, Normal kraft | T51: =B77 -> 78.5 | U51: 48.7 | V51: 0.08 | W51: =(E77-W52) -> 0 | X51: 0 | Y51: 0 | Z51: =(W51*T51) -> 0 | AA51: =(G77-AA52) -> 0 | AB51: 0 | AC51: 0 | AD51: 0
A52: N20-3 / N20-X3 (3) | B52: 17.50666667 | C52: 0.4 | E52: 0 | F52: 0 | G52: 0 | H52: 0 | S52: N70-3 12h, Normal kraft | T52: =(78.5+36) -> 114.5 | U52: =(48.7+22.5) -> 71.2 | V52: 0.92 | W52: 0 | X52: 0 | Y52: 0 | Z52: =(W52*T52) -> 0 | AA52: 0 | AB52: 0 | AC52: 0 | AD52: 0
A53: N20-3 / N20-X3 (4) FABRIKSINSTÄLLNING | B53: 20.40666667 | C53: 0.4 | E53: 0 | F53: 0 | G53: 0 | H53: 0 | S53: N-IO | T53: =B129 -> 3.2 | U53: 2 | V53: 0.1 | W53: =(W5) -> 0 | X53: 0 | Y53: 0 | Z53: 0 | AA53: =(AA5) -> 0 | AB53: 0 | AC53: 0 | AD53: =(AA53*T53) -> 0
A54: N20-3 / N20-X3 (5) | B54: 23.05666667 | C54: 0.4 | E54: 0 | F54: 0 | G54: 0 | H54: 0 | W54: Max. 127 | Z54: Max. 2000 | AA54: Max. 127 | AD54: Max. 2000
A55: N20-3 / N20-X3 (6) | B55: 25.80666667 | C55: 0.4 | E55: 0 | F55: 0 | G55: 0 | H55: 0 | S55: Totalt: | W55: =SUM(W17:W53) -> 0 | X55: =SUM(X17:X53) -> 0 | Y55: =SUM(Y17:Y53) -> 0 | Z55: =SUM(Z17:Z54) -> 0 | AA55: =SUM(AA17:AA53) -> 0 | AB55: =SUM(AB17:AB53) -> 0 | AC55: =SUM(AC17:AC53) -> 0 | AD55: =SUM(AD17:AD53) -> 0
A56: N20-3 / N20-X3 (7) | B56: 20.40666667 | C56: 0.4 | E56: 0 | F56: 0 | G56: 0 | H56: 0 | W56: =(W55/127) -> 0 | Z56: =(Z55/2000) -> 0 | AA56: =(AA55/127) -> 0 | AD56: =(AD55/2000) -> 0
A57: N40-3 / N40-X3 (0) | B57: 13.80666667 | C57: 0.4 | E57: 0 | F57: 0 | G57: 0 | H57: 0
A58: N40-3 / N40-X3 (1) | B58: 16.09466667 | C58: 0.4 | E58: 0 | F58: 0 | G58: 0 | H58: 0
A59: N40-3 / N40-X3 (2) | B59: 19.52666667 | C59: 0.4 | E59: 0 | F59: 0 | G59: 0 | H59: 0
A60: N40-3 / N40-X3 (3) | B60: 22.95866667 | C60: 0.4 | E60: 0 | F60: 0 | G60: 0 | H60: 0
A61: N40-3 / N40-X3 (4) FABRIKSINSTÄLLNING | B61: 28.10666667 | C61: 0.4 | E61: 0 | F61: 0 | G61: 0 | H61: 0
A62: N40-3 / N40-X3 (5) | B62: 30.96666667 | C62: 0.4 | E62: 0 | F62: 0 | G62: 0 | H62: 0
A63: N40-3 / N40-X3 (6) | B63: 33.82666667 | C63: 0.4 | E63: 0 | F63: 0 | G63: 0 | H63: 0
A64: N40-3 / N40-X3 (7) | B64: 28.10666667 | C64: 0.4 | E64: 0 | F64: 0 | G64: 0 | H64: 0
A65: N70 / N70-X (0) | B65: 16.5 | C65: 0.4 | E65: 0 | F65: 0 | G65: 0 | H65: 0
A66: N70 / N70-X (1) | B66: 23.3 | C66: 0.4 | E66: 0 | F66: 0 | G66: 0 | H66: 0
A67: N70 / N70-X (2) | B67: 30.1 | C67: 0.4 | E67: 0 | F67: 0 | G67: 0 | H67: 0
A68: N70 / N70-X (3) | B68: 36.9 | C68: 0.4 | E68: 0 | F68: 0 | G68: 0 | H68: 0
A69: N70 / N70-X (4) FABRIKSINSTÄLLNING | B69: 50.5 | C69: 0.4 | E69: 0 | F69: 0 | G69: 0 | H69: 0
A70: N70 / N70-X (5) | B70: 57.3 | C70: 0.4 | E70: 0 | F70: 0 | G70: 0 | H70: 0
A71: N70 / N70-X (6) | B71: 70.9 | C71: 0.4 | E71: 0 | F71: 0 | G71: 0 | H71: 0
A72: N70 / N70-X (7) | B72: 43.7 | C72: 0.4 | E72: 0 | F72: 0 | G72: 0 | H72: 0
A73: N70-3 / N70-X-3 (0) | B73: 44.5 | C73: 0.4 | E73: 0 | F73: 0 | G73: 0 | H73: 0
A74: N70-3 / N70-X-3 (1) | B74: 51.3 | C74: 0.4 | E74: 0 | F74: 0 | G74: 0 | H74: 0
A75: N70-3 / N70-X-3 (2) | B75: 58.1 | C75: 0.4 | E75: 0 | F75: 0 | G75: 0 | H75: 0
A76: N70-3 / N70-X-3 (3) | B76: 64.9 | C76: 0.4 | E76: 0 | F76: 0 | G76: 0 | H76: 0
A77: N70-3 / N70-X-3 (4) FABRIKSINSTÄLLNING | B77: 78.5 | C77: 0.4 | E77: 0 | F77: 0 | G77: 0 | H77: 0
A78: N70-3 / N70-X-3 (5) | B78: 85.3 | C78: 0.4 | E78: 0 | F78: 0 | G78: 0 | H78: 0
A79: N70-3 / N70-X-3 (6) | B79: 98.9 | C79: 0.4 | E79: 0 | F79: 0 | G79: 0 | H79: 0
A80: N70-3 / N70-X-3 (7) | B80: 71.7 | C80: 0.4 | E80: 0 | F80: 0 | G80: 0 | H80: 0
A81: N55 (0) FABRIKSINSTÄLLNING | B81: 6.1 | C81: 0.4 | E81: 0 | F81: 0 | G81: 0 | H81: =(B81*G81) -> 0
A82: N55 (1) | B82: 9.5 | C82: 0.4 | E82: 0 | F82: 0 | G82: 0 | H82: 0
A83: N55 (2) | B83: 12.9 | C83: 0.4 | E83: 0 | F83: 0 | G83: 0 | H83: 0
A84: N55 (3) | B84: 16.2 | C84: 0.4 | E84: 0 | F84: 0 | G84: 0 | H84: 0
A85: N55 (4) | B85: 23 | C85: 0.4 | E85: 0 | F85: 0 | G85: 0 | H85: 0
A86: N55 (5) | B86: 29.8 | C86: 0.4 | E86: 0 | F86: 0 | G86: 0 | H86: 0
A87: N55 (6) | B87: 35.8 | C87: 0.4 | E87: 0 | F87: 0 | G87: 0 | H87: 0
A88: N55 (7) AKTIVT LÄGE | B88: 35.8 | C88: 0.4 | E88: 0 | F88: 0 | G88: 0 | H88: 0
A89: N55-3 (0) FABRIKSINSTÄLLNING | B89: 9.7 | C89: 0.4 | E89: 0 | F89: 0 | G89: 0 | H89: 0
A90: N55-3 (1) | B90: 13.1 | C90: 0.4 | E90: 0 | F90: 0 | G90: 0 | H90: 0
A91: N55-3 (2) | B91: 16.5 | C91: 0.4 | E91: 0 | F91: 0 | G91: 0 | H91: 0
A92: N55-3 (3) | B92: 19.8 | C92: 0.4 | E92: 0 | F92: 0 | G92: 0 | H92: 0
A93: N55-3 (4) | B93: 26.6 | C93: 0.4 | E93: 0 | F93: 0 | G93: 0 | H93: 0
A94: N55-3 (5) | B94: 33.4 | C94: 0.4 | E94: 0 | F94: 0 | G94: 0 | H94: 0
A95: N55-3 (6) | B95: 39.5 | C95: 0.4 | E95: 0 | F95: 0 | G95: 0 | H95: 0
A96: N55-3 (7) AKTIVT LÄGE | B96: 39.5 | C96: 0.4 | E96: 0 | F96: 0 | G96: 0 | H96: 0
A97: N89-C/N89-O (0) FABRIKSINSTÄLLNING | B97: 16.5 | C97: 0.4 | E97: 0 | F97: 0 | G97: 0 | H97: 0
A98: N89-C/N89-O (1) | B98: 30.1 | C98: 0.4 | E98: 0 | F98: =(B98*E98) -> 0 | G98: 0 | H98: 0
A99: N89-C/N89-O (2) | B99: 36.9 | C99: 0.4 | E99: 0 | F99: 0 | G99: 0 | H99: 0
A100: N89-C/N89-O (3) | B100: 43.7 | C100: 0.4 | E100: 0 | F100: 0 | G100: 0 | H100: 0
A101: N89-C/N89-O (4) | B101: 50.5 | C101: 0.4 | E101: 0 | F101: 0 | G101: 0 | H101: 0
A102: N89-C/N89-O (5) | B102: 64.1 | C102: 0.4 | E102: 0 | F102: 0 | G102: 0 | H102: 0
A103: N89-C/N89-O (6) AKTIVT LÄGE | B103: 152.5 | C103: 0.4 | E103: 0 | F103: 0 | G103: 0 | H103: 0
A104: N89-C/N89-O (7) | B104: 234.1 | C104: 0.4 | E104: 0 | F104: 0 | G104: 0 | H104: 0
A105: N89-C3/N89-O3 (0) FABRIKSINSTÄLLNING | B105: 44.5 | C105: 0.4 | E105: 0 | F105: 0 | G105: 0 | H105: 0
A106: N89-C3/N89-O3 (1) | B106: 58.1 | C106: 0.4 | E106: 0 | F106: 0 | G106: 0 | H106: 0
A107: N89-C3/N89-O3 (2) | B107: 64.9 | C107: 0.4 | E107: 0 | F107: 0 | G107: 0 | H107: 0
A108: N89-C3/N89-O3 (3) | B108: 71.7 | C108: 0.4 | E108: 0 | F108: 0 | G108: 0 | H108: 0
A109: N89-C3/N89-O3 (4) | B109: 78.5 | C109: 0.4 | E109: 0 | F109: 0 | G109: 0 | H109: 0
A110: N89-C3/N89-O3 (5) | B110: 92.1 | C110: 0.4 | E110: 0 | F110: 0 | G110: 0 | H110: 0
A111: N89-C3/N89-O3 (6) AKTIVT LÄGE | B111: 180.5 | C111: 0.4 | E111: 0 | F111: 0 | G111: 0 | H111: 0
A112: N89-C3/N89-O3 (7) | B112: 262.1 | C112: 0.4 | E112: 0 | F112: 0 | G112: 0 | H112: 0
A113: N40C/N40C (0) | B113: 16.5 | C113: 0.4 | E113: 0 | F113: 0 | G113: 0 | H113: 0
A114: N40C/N40C (1) | B114: 30.1 | C114: 0.4 | E114: 0 | F114: 0 | G114: 0 | H114: 0
A115: N40C/N40C (2) | B115: 36.9 | C115: 0.4 | E115: 0 | F115: 0 | G115: 0 | H115: 0
A116: N40C/N40C (3) | B116: 43.7 | C116: 0.4 | E116: 0 | F116: 0 | G116: 0 | H116: 0
A117: N40C/N40C (4) FABRIKSINSTÄLLNING | B117: 50.5 | C117: 0.4 | E117: 0 | F117: 0 | G117: 0 | H117: 0
A118: N40C/N40C (5) | B118: 64.1 | C118: 0.4 | E118: 0 | F118: 0 | G118: 0 | H118: 0
A119: N40C/N40C (6) | B119: 70.9 | C119: 0.4 | E119: 0 | F119: 0 | G119: 0 | H119: 0
A120: N40C/N40C (7) AKTIVT LÄGE | B120: 234.1 | C120: 0.4 | E120: 0 | F120: 0 | G120: 0 | H120: 0
A121: N40C-3/N40C-3 (0) | B121: 44.5 | C121: 0.4 | E121: 0 | F121: 0 | G121: 0 | H121: 0
A122: N40C-3/N40C-3 (1) | B122: 58.1 | C122: 0.4 | E122: 0 | F122: 0 | G122: 0 | H122: 0
A123: N40C-3/N40C-3 (2) | B123: 64.9 | C123: 0.4 | E123: 0 | F123: 0 | G123: 0 | H123: 0
A124: N40C-3/N40C-3 (3) | B124: 71.7 | C124: 0.4 | E124: 0 | F124: 0 | G124: 0 | H124: 0
A125: N40C-3/N40C-3 (4) FABRIKSINSTÄLLNING | B125: 78.5 | C125: 0.4 | E125: 0 | F125: 0 | G125: 0 | H125: 0
A126: N40C-3/N40C-3 (5) | B126: 92.1 | C126: 0.4 | E126: 0 | F126: 0 | G126: 0 | H126: 0
A127: N40C-3/N40C-3 (6) | B127: 98.9 | C127: 0.4 | E127: 0 | F127: 0 | G127: 0 | H127: 0
A128: N40C-3/N40C-3 (7) AKTIVT LÄGE | B128: 262.1 | C128: 0.4 | E128: 0 | F128: 0 | G128: 0 | H128: 0
A129: N-IO | B129: 3.2 | E129: 0 | F129: 0 | G129: 0 | H129: 0
E131: Antal | F131: Antal | G131: Antal | H131: Antal
A132: Totalt: | E132: =SUM(E17:E129) -> 0 | F132: =SUM(F17:F129) -> 0 | G132: =SUM(G17:G129) -> 0 | H132: =SUM(H17:H129) -> 0
E133: =IF(E132<128,"Ok","Fel") -> Ok | F133: =IF(F132<2000,"Ok","Fel") -> Ok | G133: =IF(G132<128,"Ok","Fel") -> Ok | H133: =IF(H132<2000,"Ok","Fel") -> Ok | J133: Central batteri dimensioning
J134: Önskad batteristorlek | M134: =((F143*M136*2)/1000) -> 0.12 | N134: Ah
A135: Konsumtion | E135: Antal | F135: Ström | H135: Maxbelastning
E136: kpl | F136: (mA) | H136: Avgift (mA) | J136: Standbytid | M136: 1 | N136: timmar
A137: Central: | F137: =F10 -> 60
A138: Linje 1 | E138: =E132 -> 0 | F138: =(F132) -> 0 | H138: =(Z55) -> 0
A139: Linje 2 | E139: =G132 -> 0 | F139: =H132 -> 0 | H139: =(AD55) -> 0 | J139: Valt batteristorlek | L139: =IF(M139>M134,"OK","Ei voida ladata") -> OK | M139: 14 | N139: Ah
J141: Faktisk besökstid | M141: =(M139*1000)/(F143*2) -> 116.6666667 | N141: h
E142: kpl | F142: (mA)
A143: Yhteensä: | E143: =SUM(E138:E142) -> 0 | F143: =SUM(F137:F142) -> 60
E147: Linje 1 | F147: Linje 2
A148: Linje längd [m] (max. 1000m) | E148: 1 | F148: 1
E149: =IF(E148<=1000,"OK","TOO LONG") -> OK | F149: =IF(F148<=1000,"OK","TOO LONG") -> OK
A150: Max ström [mA] | E150: =IF(F138<H138,H138,F138) -> 0 | F150: =IF(F139<H139,H139,F139) -> 0
C151: 0.7 | D151: yF
C152: 0.7 | D152: mH
A155: Osoitteet silmukassa tasavälein
A156: KLMA 2x0.8 74 ohm / km | E156: =IF(LOOKUP(E148,#REF!,#REF!)>E150,"OK","EI OK") ->  | F156: =IF(LOOKUP(F148,#REF!,#REF!)>F150,"OK","EI OK") ->  | G156: =IF(LOOKUP(G148,#REF!,#REF!)>G150,"OK","EI OK") ->  | H156: =IF(LOOKUP(H148,#REF!,#REF!)>H150,"OK","EI OK") -> 
A157: KLMA 4x0.8 37 ohm / km | E157: =IF(LOOKUP(E148,#REF!,#REF!)>E150,"OK","EI OK") ->  | F157: =IF(LOOKUP(F148,#REF!,#REF!)>F150,"OK","EI OK") ->  | G157: =IF(LOOKUP(G148,#REF!,#REF!)>G150,"OK","EI OK") ->  | H157: =IF(LOOKUP(H148,#REF!,#REF!)>H150,"OK","EI OK") -> 
A158: KLMA 2kpl 4x0.8 18,5 ohm / km | E158: =IF(LOOKUP(E148,#REF!,#REF!)>E150,"OK","EI OK") ->  | F158: =IF(LOOKUP(F148,#REF!,#REF!)>F150,"OK","EI OK") ->  | G158: =IF(LOOKUP(G148,#REF!,#REF!)>G150,"OK","EI OK") ->  | H158: =IF(LOOKUP(H148,#REF!,#REF!)>H150,"OK","EI OK") -> 
A160: Addressen I linjen med lika intervall
A161: KLMA 2x0.8 74 ohm / km | E161: =IF(AM225>=25,"OK","TOO LONG") ->  | F161: =IF(BE225>=25,"OK","TOO LONG") -> 
A162: KLMA 4x0.8 37 ohm / km | E162: =IF(AM263>=25,"OK","TOO LONG") ->  | F162: =IF(BE263>=25,"OK","TOO LONG") -> 
A163: ELQYB 2x1,0 50 ohm / km | E163: =IF(AM301>=25,"OK","TOO LONG") ->  | F163: =IF(BE301>=25,"OK","TOO LONG") -> 
A164: ELQYB 4x1,0 25 ohm / km | E164: =IF(AM339>=25,"OK","TOO LONG") ->  | F164: =IF(BE339>=25,"OK","TOO LONG") -> 
A165: KLM 2x1,0 50 ohm / km | E165: =IF(AM301>=25,"OK","TOO LONG") ->  | F165: =IF(BE301>=25,"OK","TOO LONG") -> 
A166: KLM 4x1,0 25 ohm / km | E166: =IF(AM339>=25,"OK","TOO LONG") ->  | F166: =IF(BE339>=25,"OK","TOO LONG") -> 
A167: Osoitteet silmukan päässä | E167: =IF(AM342>=25,"OK","TOO LONG") -> TOO LONG | F167: =IF(BE342>=25,"OK","TOO LONG") -> TOO LONG
A168: KLMA 2x0.8 74 ohm / km | E168: TOO LONG | F168: TOO LONG | G168: =IF(LOOKUP(G148,#REF!,#REF!)>G150,"OK","EI OK") ->  | H168: =IF(LOOKUP(H148,#REF!,#REF!)>H150,"OK","EI OK") -> 
A169: KLMA 4x0.8 37 ohm / km | E169: TOO LONG | F169: TOO LONG | G169: =IF(LOOKUP(G148,#REF!,#REF!)>G150,"OK","EI OK") ->  | H169: =IF(LOOKUP(H148,#REF!,#REF!)>H150,"OK","EI OK") -> 
A170: KLMA 2kpl 4x0.8 18,5 ohm / km | E170: TOO LONG | F170: TOO LONG | G170: =IF(LOOKUP(G148,#REF!,#REF!)>G150,"OK","EI OK") ->  | H170: =IF(LOOKUP(H148,#REF!,#REF!)>H150,"OK","EI OK") -> 
A172: Osoitteet linjan päässä
A173: KLMA 2x0.8 74 ohm / km | E173: =IF(G227<=15,"OK","TOO LONG") -> OK | F173: =IF(H227<=15,"OK","TOO LONG") -> OK
A174: KLMA 4x0.8 37 ohm / km | E174: =IF(G228<=15,"OK","TOO LONG") -> OK | F174: OK
A175: ELQYB 2x1,0 50 ohm / km | E175: OK | F175: OK
A176: ELQYB 4x1,0 25 ohm / km | E176: OK | F176: OK
A177: KLM 2x1,0 50 ohm / km | E177: =IF(G229<=15,"OK","TOO LONG") -> OK | F177: =IF(H229<=15,"OK","TOO LONG") -> OK
A178: KLM 4x1,0 25 ohm / km | E178: =IF(G230<=15,"OK","TOO LONG") -> OK | F178: =IF(H230<=15,"OK","TOO LONG") -> OK
A182: Loop cabling equal distance
E183: jännite 25V-40V | F183: N89 28V-40V
G184: ELQYB/KLM 4x1.0 25 ohm/km | I184: ELQYB/KLM 2x1.0 50 ohms/km | K184: KLMA 4x0.8 37 ohm/km | M184: KLMA 2x0.8 74 ohm/km | O184: [m] | Q184: metrit
G185: I, [mA] | H185: I, [mA] | I185: I, [mA] | J185: I, [mA] | K185: I, [mA] | L185: I, [mA] | M185: I, [mA] | N185: I, [mA]
G186: =((15/(2*25*Q186*0.001))*1000) -> 6000 | H186: =((15/(2*25*P186*0.001))*1000) -> 300 | I186: =((15/(2*50*Q186*0.001))*1000) -> 3000 | J186: =((15/(2*50*P186*0.001))*1000) -> 150 | K186: =((15/(2*37*Q186*0.001))*1000) -> 4054.054054 | L186: =((15/(2*37*P186*0.001))*1000) -> 202.7027027 | M186: =((15/(2*74*Q186*0.001))*1000) -> 2027.027027 | N186: =((15/(2*74*P186*0.001))*1000) -> 101.3513514 | O186: 0 | P186: 1000 | Q186: 50
G187: 3000 | H187: =((15/(2*25*P187*0.001))*1000) -> 333.3333333 | I187: 1500 | J187: =((15/(2*50*P187*0.001))*1000) -> 166.6666667 | K187: 2027.027027 | L187: =((15/(2*37*P187*0.001))*1000) -> 225.2252252 | M187: 1013.513514 | N187: =((15/(2*74*P187*0.001))*1000) -> 112.6126126 | O187: 280 | P187: 900 | Q187: 100
G188: 1500 | H188: 375 | I188: 750 | J188: 187.5 | K188: 1013.513514 | L188: 253.3783784 | M188: 506.7567568 | N188: 126.6891892 | O188: 500 | P188: 800 | Q188: 200
G189: 1000 | H189: 428.5714286 | I189: 500 | J189: 214.2857143 | K189: 675.6756757 | L189: 289.5752896 | M189: 337.8378378 | N189: 144.7876448 | O189: 1000 | P189: 700 | Q189: 300
G190: 750 | H190: 500 | I190: 375 | J190: 250 | K190: 506.7567568 | L190: 337.8378378 | M190: 253.3783784 | N190: 168.9189189 | O190: 1500 | P190: 600 | Q190: 400
G191: 600 | H191: 600 | I191: 300 | J191: 300 | K191: 405.4054054 | L191: 405.4054054 | M191: 202.7027027 | N191: 202.7027027 | O191: 2000 | P191: 500 | Q191: 500
G192: 500 | H192: 750 | I192: 250 | J192: 375 | K192: 337.8378378 | L192: 506.7567568 | M192: 168.9189189 | N192: 253.3783784 | O192: 2001 | P192: 400 | Q192: 600
G193: 428.5714286 | H193: 1000 | I193: 214.2857143 | J193: 500 | K193: 289.5752896 | L193: 675.6756757 | M193: 144.7876448 | N193: 337.8378378 | P193: 300 | Q193: 700
G194: 375 | H194: 1500 | I194: 187.5 | J194: 750 | K194: 253.3783784 | L194: 1013.513514 | M194: 126.6891892 | N194: 506.7567568 | P194: 200 | Q194: 800
G195: 333.3333333 | H195: 3000 | I195: 166.6666667 | J195: 1500 | K195: 225.2252252 | L195: 2027.027027 | M195: 112.6126126 | N195: 1013.513514 | P195: 100 | Q195: 900 | X195: Kaapelin ominaisresistanssi | Z195: 74 | AA195: ohm/km | AP195: Kaapelin ominaisresistanssi | AR195: 74 | AS195: ohm/km
G196: =((15/(2*25*Q196*0.001))*1000) -> 300 | H196: 6000 | I196: =((15/(2*50*Q196*0.001))*1000) -> 150 | J196: 3000 | K196: =((15/(2*37*Q196*0.001))*1000) -> 202.7027027 | L196: 4054.054054 | M196: =((15/(2*74*Q196*0.001))*1000) -> 101.3513514 | N196: 2027.027027 | P196: 50 | Q196: 1000 | X196: Kaapelivastus/silmukka | Z196: =((Z195*Z197)/1000) -> 0.074 | AA196: ohm | AP196: Kaapelivastus/silmukka | AR196: =((AR195*AR197)/1000) -> 0.074 | AS196: ohm
A197: Loop cabling worst case | X197: Kaapelin pituus | Z197: =E148 -> 1 | AA197: m | AP197: Kaapelin pituus | AR197: =F148 -> 1 | AS197: m
X198: Kuormitus | Z198: =(E150/1000) -> 0 | AA198: A | AP198: Kuormitus | AR198: =(F150/1000) -> 0 | AS198: A
G199: ELQYB/KLM 4x1.0 25 ohm/km | I199: ELQYB/KLM 2x1.0 50 ohms/km | K199: KLMA 4x0.8 37 ohm/km | M199: KLMA 2x0.8 74 ohm/km | O199: [m]
G200: I, [mA] | H200: I, [mA] | I200: I, [mA] | J200: I, [mA] | K200: I, [mA] | L200: I, [mA] | M200: I, [mA]
G201: 1230 | H201: 3000 | I201: 635 | J201: 3000 | K201: 835 | L201: 3000 | M201: 415 | N201: 3000 | O201: 1000 | P201: 0 | W201: R1 | X201: =(Z196/10/2) -> 0.0037 | AO201: R1 | AP201: =(AR196/10/2) -> 0.0037
G202: 1370 | H202: 3000 | I202: 680 | J202: 3000 | K202: 925 | L202: 3000 | M202: 460 | N202: 3000 | O202: 900 | P202: 100 | V202: 1 | W202: R2 | X202: =(31/(Z198/10)) ->  | Z202: =(X201+X202+X203) ->  | AA202: =(-X202) ->  | AB202: 0 | AC202: 0 | AD202: 0 | AE202: 0 | AF202: 0 | AG202: 0 | AH202: 0 | AI202: 0 | AK202: 40 | AO202: R2 | AP202: =(31/(AR198/10)) ->  | AR202: =(AP201+AP202+AP203) ->  | AS202: =(-AP202) ->  | AT202: 0 | AU202: 0 | AV202: 0 | AW202: 0 | AX202: 0 | AY202: 0 | AZ202: 0 | BA202: 0 | BC202: 40
G203: 1540 | H203: 3000 | I203: 770 | J203: 3000 | K203: 1040 | L203: 3000 | M203: 520 | N203: 2000 | O203: 800 | P203: 200 | W203: R3 | X203: =(Z196/10/2) -> 0.0037 | Z203: =(-X202) ->  | AA203: =(X204+X205+X206+X202) ->  | AB203: =(-X205) ->  | AC203: 0 | AD203: 0 | AE203: 0 | AF203: 0 | AG203: 0 | AH203: 0 | AI203: 0 | AK203: 0 | AO203: R3 | AP203: =(AR196/10/2) -> 0.0037 | AR203: =(-AP202) ->  | AS203: =(AP204+AP205+AP206+AP202) ->  | AT203: =(-AP205) ->  | AU203: 0 | AV203: 0 | AW203: 0 | AX203: 0 | AY203: 0 | AZ203: 0 | BA203: 0 | BC203: 0
G204: 1765 | H204: 3000 | I204: 880 | J204: 2000 | K204: 1190 | L204: 3000 | M204: 595 | N204: 1350 | O204: 700 | P204: 300 | W204: R4 | X204: =(Z196/10/2) -> 0.0037 | Z204: 0 | AA204: =(-X205) ->  | AB204: =(X207+X208+X209+X205) ->  | AC204: =(-X208) ->  | AD204: 0 | AE204: 0 | AF204: 0 | AG204: 0 | AH204: 0 | AI204: 0 | AK204: 0 | AO204: R4 | AP204: =(AR196/10/2) -> 0.0037 | AR204: 0 | AS204: =(-AP205) ->  | AT204: =(AP207+AP208+AP209+AP205) ->  | AU204: =(-AP208) ->  | AV204: 0 | AW204: 0 | AX204: 0 | AY204: 0 | AZ204: 0 | BA204: 0 | BC204: 0
G205: 2000 | H205: 3000 | I205: 1030 | J205: 1540 | K205: 1380 | L205: 2000 | M205: 695 | N205: 1040 | O205: 600 | P205: 400 | V205: 2 | W205: R5 | X205: =(31/(Z198/10)) ->  | Z205: 0 | AA205: 0 | AB205: =(-X208) ->  | AC205: =(X210+X211+X212+X208) ->  | AD205: =(-X211) ->  | AE205: 0 | AF205: 0 | AG205: 0 | AH205: 0 | AI205: 0 | AK205: 0 | AO205: R5 | AP205: =(31/(AR198/10)) ->  | AR205: 0 | AS205: 0 | AT205: =(-AP208) ->  | AU205: =(AP210+AP211+AP212+AP208) ->  | AV205: =(-AP211) ->  | AW205: 0 | AX205: 0 | AY205: 0 | AZ205: 0 | BA205: 0 | BC205: 0
G206: 2000 | H206: 3000 | I206: 1235 | J206: 1235 | K206: 1670 | L206: 1670 | M206: 835 | N206: 835 | O206: 500 | P206: 500 | W206: R6 | X206: =(Z196/10/2) -> 0.0037 | Z206: 0 | AA206: 0 | AB206: 0 | AC206: =(-X211) ->  | AD206: =(X213+X214+X215+X211) ->  | AE206: =(-X214) ->  | AF206: 0 | AG206: 0 | AH206: 0 | AI206: 0 | AK206: 0 | AO206: R6 | AP206: =(AR196/10/2) -> 0.0037 | AR206: 0 | AS206: 0 | AT206: 0 | AU206: =(-AP211) ->  | AV206: =(AP213+AP214+AP215+AP211) ->  | AW206: =(-AP214) ->  | AX206: 0 | AY206: 0 | AZ206: 0 | BA206: 0 | BC206: 0
G207: 2000 | H207: 2000 | I207: 1540 | J207: 1030 | K207: 2000 | L207: 1380 | M207: 1040 | N207: 695 | O207: 400 | P207: 600 | W207: R7 | X207: =(Z196/10/2) -> 0.0037 | Z207: 0 | AA207: 0 | AB207: 0 | AC207: 0 | AD207: =(-X214) ->  | AE207: =(X216+X217+X218+X214) ->  | AF207: =(-X217) ->  | AG207: 0 | AH207: 0 | AI207: 0 | AK207: 0 | AO207: R7 | AP207: =(AR196/10/2) -> 0.0037 | AR207: 0 | AS207: 0 | AT207: 0 | AU207: 0 | AV207: =(-AP214) ->  | AW207: =(AP216+AP217+AP218+AP214) ->  | AX207: =(-AP217) ->  | AY207: 0 | AZ207: 0 | BA207: 0 | BC207: 0
G208: 2000 | H208: 1765 | I208: 2000 | J208: 880 | K208: 2000 | L208: 1190 | M208: 1350 | N208: 595 | O208: 300 | P208: 700 | V208: 3 | W208: R8 | X208: =(31/(Z198/10)) ->  | Z208: 0 | AA208: 0 | AB208: 0 | AC208: 0 | AD208: 0 | AE208: =(-X217) ->  | AF208: =(X216+X217+X218+X214) ->  | AG208: =(-X220) ->  | AH208: 0 | AI208: 0 | AK208: 0 | AO208: R8 | AP208: =(31/(AR198/10)) ->  | AR208: 0 | AS208: 0 | AT208: 0 | AU208: 0 | AV208: 0 | AW208: =(-AP217) ->  | AX208: =(AP216+AP217+AP218+AP214) ->  | AY208: =(-AP220) ->  | AZ208: 0 | BA208: 0 | BC208: 0
G209: 2000 | H209: 1540 | I209: 2000 | J209: 770 | K209: 2000 | L209: 1040 | M209: 2000 | N209: 520 | O209: 200 | P209: 800 | W209: R9 | X209: =(Z196/10/2) -> 0.0037 | Z209: 0 | AA209: 0 | AB209: 0 | AC209: 0 | AD209: 0 | AE209: 0 | AF209: =(-X220) ->  | AG209: =(X222+X223+X224+X220) ->  | AH209: =(-X223) ->  | AI209: 0 | AK209: 0 | AO209: R9 | AP209: =(AR196/10/2) -> 0.0037 | AR209: 0 | AS209: 0 | AT209: 0 | AU209: 0 | AV209: 0 | AW209: 0 | AX209: =(-AP220) ->  | AY209: =(AP222+AP223+AP224+AP220) ->  | AZ209: =(-AP223) ->  | BA209: 0 | BC209: 0
G210: 2000 | H210: 1370 | I210: 2000 | J210: 680 | K210: 2000 | L210: 925 | M210: 2000 | N210: 460 | O210: 100 | P210: 900 | W210: R10 | X210: =(Z196/10/2) -> 0.0037 | Z210: 0 | AA210: 0 | AB210: 0 | AC210: 0 | AD210: 0 | AE210: 0 | AF210: 0 | AG210: =(-X223) ->  | AH210: =(X225+X226+X227+X223) ->  | AI210: =(-X226) ->  | AK210: 0 | AO210: R10 | AP210: =(AR196/10/2) -> 0.0037 | AR210: 0 | AS210: 0 | AT210: 0 | AU210: 0 | AV210: 0 | AW210: 0 | AX210: 0 | AY210: =(-AP223) ->  | AZ210: =(AP225+AP226+AP227+AP223) ->  | BA210: =(-AP226) ->  | BC210: 0
G211: 2000 | H211: 1230 | I211: 2000 | J211: 610 | K211: 2000 | L211: 835 | M211: 2000 | N211: 415 | O211: 0 | P211: 1000 | V211: 4 | W211: R11 | X211: =(31/(Z198/10)) ->  | Z211: 0 | AA211: 0 | AB211: 0 | AC211: 0 | AD211: 0 | AE211: 0 | AF211: 0 | AG211: 0 | AH211: =(-X226) ->  | AI211: =(X228+X229+X230+X226) ->  | AK211: 0 | AO211: R11 | AP211: =(31/(AR198/10)) ->  | AR211: 0 | AS211: 0 | AT211: 0 | AU211: 0 | AV211: 0 | AW211: 0 | AX211: 0 | AY211: 0 | AZ211: =(-AP226) ->  | BA211: =(AP228+AP229+AP230+AP226) ->  | BC211: 0
W212: R12 | X212: =(Z196/10/2) -> 0.0037 | AO212: R12 | AP212: =(AR196/10/2) -> 0.0037
W213: R13 | X213: =(Z196/10/2) -> 0.0037 | AO213: R13 | AP213: =(AR196/10/2) -> 0.0037
V214: 5 | W214: R14 | X214: =(31/(Z198/10)) ->  | Z214: =MINVERSE(Z202:AI211) ->  | AK214: =MMULT(_xlfn.ANCHORARRAY(Z214),AK202:AK211) ->  | AO214: R14 | AP214: =(31/(AR198/10)) ->  | AR214: =MINVERSE(AR202:BA211) ->  | BC214: =MMULT(_xlfn.ANCHORARRAY(AR214),BC202:BC211) -> 
W215: R15 | X215: =(Z196/10/2) -> 0.0037 | AO215: R15 | AP215: =(AR196/10/2) -> 0.0037
W216: R16 | X216: =(Z196/10/2) -> 0.0037 | AO216: R16 | AP216: =(AR196/10/2) -> 0.0037
... 116 more rows

Sheet Neptolux FIN
A1: Kaapelimitoitus ja kuormitus | I1: Kohde:
A2: v 1.1
A3: Nepto 3K | I3: Pvm:
B4: Lepo | E4: Määrä | F4: Kulutus, mA
A5: Nepto 3K | B5: 60 | E5: 1 | F5: =E5*B5 -> 60 | I5: Versio:
A6: Linjakortti (linja 2) | B6: 15 | E6: 0 | F6: =E6*B6 -> 0
A7: Verkotuskortti (HedRing.net) | B7: 40 | E7: 0 | F7: 0 | I7: Numero:
A8: NL-KLG | B8: 60 | E8: 0 | F8: 0
A10: Yhteensä: | F10: =SUM(F5:F9) -> 60
S13: Maksimikuormituksen laskenta
A15: Turvavalot | B15: Lepo | C15: Lataus/vikaledi | E15: Linja 1 | G15: Linja 2 | J15: Käyttöohje | S15: Neptolux- laitteet | W15: Linja 1 | AA15: Linja 2
C16: päällä | E16: Määrä | F16: Virta, mA | G16: Määrä | H16: Virta, mA | T16: I, [mA] | U16: NU | V16: P, [W] | W16: Määrä | X16: NU | Y16: Teho, W | Z16: Virta, mA | AA16: Määrä | AB16: NU | AC16: Teho, W | AD16: Virta, mA
A17: N68-C/ N68-O (0) TEHDASAS. | B17: 7.8 | C17: 0.4 | E17: 0 | F17: =(B17*E17) -> 0 | G17: 0 | H17: =(B17*G17) -> 0 | J17: Tämän laskurin avulla määritetään: | S17: N68-C/N68-O 24h, Normaaliteho | T17: =B17 -> 7.8 | U17: 4.8 | V17: 0.04 | W17: =(E17-W18-W19-W20) -> 0 | X17: =(W17*U17) -> 0 | Y17: =(W17*0.25) -> 0 | Z17: =(W17*T17) -> 0 | AA17: =(G17-AA18-AA19-AA20) -> 0 | AB17: =(AA17*Y17) -> 0 | AC17: =(AA17*0.25) -> 0 | AD17: =(AA17*T17) -> 0
A18: N68-C/ N68-O (1) | B18: 11.04 | C18: 0.4 | E18: 0 | F18: =(B18*E18) -> 0 | G18: 0 | H18: 0 | J18: Nepto 3K- keskuksen virrankulutus | S18: N68-C/N68-O 12h, Normaaliteho | T18: =(T17+4.7) -> 12.5 | U18: =(U17+2) -> 6.8 | V18: 0.96 | W18: 0 | X18: =(W18*U18) -> 0 | Y18: 0 | Z18: 0 | AA18: 0 | AB18: =(AA18*Y18) -> 0 | AC18: 0 | AD18: =(AA18*T18) -> 0
A19: N68-C/ N68-O (2) | B19: 14.28 | C19: 0.4 | E19: 0 | F19: 0 | G19: 0 | H19: 0 | J19: Linjan kuormitus | S19: N68-C/N68-O 24h, Hi-Power | T19: =(T17+4.7) -> 12.5 | U19: =(U17+2) -> 6.8 | V19: 0.04 | W19: 0 | X19: 0 | Y19: =(W19*0.25) -> 0 | Z19: 0 | AA19: 0 | AB19: 0 | AC19: =(AA19*0.25) -> 0 | AD19: =(AA19*T19) -> 0
A20: N68-C/ N68-O (3) | B20: 17.52 | C20: 0.4 | E20: 0 | F20: 0 | G20: 0 | H20: 0 | J20: Linjan maksimipituus | S20: N68-C/N68-O 12h, Hi-Power | T20: =(T17+21.7) -> 29.5 | U20: =(U17+13) -> 17.8 | V20: 0.96 | W20: 0 | X20: 0 | Y20: =(W20*0.25) -> 0 | Z20: 0 | AA20: 0 | AB20: 0 | AC20: =(AA20*0.25) -> 0 | AD20: 0
A21: N68-C/ N68-O (4) | B21: 24 | C21: 0.4 | E21: 0 | F21: 0 | G21: 0 | H21: 0 | J21: Keskusakuston mitoitus | S21: N20 24h, Normaaliteho | T21: =B29 -> 12.7 | U21: 7.9 | V21: 0.25 | W21: =(E29-W22) -> 0 | X21: 0 | Y21: =(W21*0.25) -> 0 | Z21: 0 | AA21: =(G29-AA22) -> 0 | AB21: 0 | AC21: =(AA21*0.25) -> 0 | AD21: 0
A22: N68-C/ N68-O (5) | B22: 30.48 | C22: 0.4 | E22: 0 | F22: 0 | G22: 0 | H22: 0 | S22: N20 12h, Normaaliteho | T22: =(T21+4.7) -> 17.4 | U22: =(U21+2) -> 9.9 | V22: 0.25 | W22: 0 | X22: 0 | Y22: =(W22*0.25) -> 0 | Z22: 0 | AA22: 0 | AB22: 0 | AC22: =(AA22*0.25) -> 0 | AD22: 0
A23: N68-C/ N68-O (6) | B23: 36.312 | C23: 0.4 | E23: 0 | F23: 0 | G23: 0 | H23: 0 | J23: 1. Syötä keskuslaitteiden määrä | S23: N40 24h, Normaaliteho | T23: =B37 -> 20.4 | U23: 12.6 | V23: 0.53 | W23: =(E37-W24) -> 0 | X23: 0 | Y23: =(W23*0.53) -> 0 | Z23: 0 | AA23: =(G37-AA24) -> 0 | AB23: 0 | AC23: =(AA23*0.53) -> 0 | AD23: 0
A24: N68-C/ N68-O (7) AKTIIVITILA | B24: 36.312 | C24: 0.4 | E24: 0 | F24: 0 | G24: 0 | H24: 0 | J24: 2. Syötä linjoissa käytettävät valaisinmäärät tyypeittäin. Oletuskirkkaudet on merkitty taulukkoon tummemmalla sävyllä | S24: N40 12h, Normaaliteho | T24: =(T23+4.7) -> 25.1 | U24: =(U23+2) -> 14.6 | V24: 0.53 | W24: 0 | X24: 0 | Y24: =(W24*0.53) -> 0 | Z24: 0 | AA24: 0 | AB24: 0 | AC24: =(AA24*0.53) -> 0 | AD24: 0
A25: N20 / N20-X (0) | B25: 6.1 | C25: 0.4 | E25: 0 | F25: 0 | G25: 0 | H25: 0 | J25: 3. Laskuri ilmoittaa, mikäli maksimikuormitus tai osoitemäärä ylittyy | S25: N68-C-3/N68-O-3 24h, Normaaliteho | T25: =B41 -> 22 | U25: 13.6 | V25: 0.04 | W25: =(E41-W26-W27-W28) -> 0 | X25: 0 | Y25: =(W25*0.25) -> 0 | Z25: 0 | AA25: =(G41-AA26-AA27-AA28) -> 0 | AB25: 0 | AC25: =(AA25*0.25) -> 0 | AD25: 0
A26: N20 / N20-X (1) | B26: 7.333333333 | C26: 0.4 | E26: 0 | F26: 0 | G26: 0 | H26: 0 | J26: 4. Syötä linjan arvioitu maksimipituus rivillä 148 oleviin kenttiin. (etäisyys keskukselta kauimmaiselle valaisimelle) | S26: N68-C-3/N68-O-3 12h, Normaaliteho | T26: =(T25+17.1) -> 39.1 | U26: =(U25+11) -> 24.6 | V26: 0.96 | W26: 0 | X26: 0 | Y26: 0 | Z26: 0 | AA26: 0 | AB26: 0 | AC26: 0 | AD26: 0
A27: N20 / N20-X (2) | B27: 8.566666667 | C27: 0.4 | E27: 0 | F27: 0 | G27: 0 | H27: 0 | J27: 5. Laskuri käyttää kohdassa 2 syötettyjä virta-arvoja ja ilmoittaa kaapelityypeittäin, onko kaapelin kuormitus sopivissa rajoissa | S27: N68-C-3/N68-O-3 24h, Hi-Power | T27: =(T25+4.7) -> 26.7 | U27: =(U25+11) -> 24.6 | V27: 0.04 | W27: 0 | X27: 0 | Y27: 0 | Z27: 0 | AA27: 0 | AB27: 0 | AC27: 0 | AD27: 0
A28: N20 / N20-X (3) | B28: 9.8 | C28: 0.4 | E28: 0 | F28: 0 | G28: 0 | H28: 0 | S28: N68-C-3/N68-O-3 12h, Hi-Power | T28: =(T25+24.1) -> 46.1 | U28: =(U25+15) -> 28.6 | V28: 0.96 | W28: 0 | X28: 0 | Y28: 0 | Z28: 0 | AA28: 0 | AB28: 0 | AC28: 0 | AD28: 0
A29: N20 / N20-X (4) TEHDASAS. | B29: 12.7 | C29: 0.4 | E29: 0 | F29: 0 | G29: 0 | H29: 0 | J29: 6. Järjestelmässä on mahdollista käyttää HI-Power- asetusta tai 12h latausta, jolloin linjan lautauksenaikainen maksimikuormitus kasvaa. | S29: N20-3 24h, Normaaliteho | T29: =B53 -> 20.6 | U29: 12.8 | V29: 0.25 | W29: =(E53-W30) -> 0 | X29: 0 | Y29: 0 | Z29: =(W29*T29) -> 0 | AA29: =(G53-AA30) -> 0 | AB29: 0 | AC29: 0 | AD29: 0
A30: N20 / N20-X (5) | B30: 15.35 | C30: 0.4 | E30: 0 | F30: 0 | G30: 0 | H30: 0 | S30: N20-3 12h, Normaaliteho | T30: =(T29+17.1) -> 37.7 | U30: =(U29+11) -> 23.8 | V30: 0.25 | W30: 0 | X30: 0 | Y30: 0 | Z30: =(W30*T30) -> 0 | AA30: 0 | AB30: 0 | AC30: 0 | AD30: 0
A31: N20 / N20-X (6) | B31: 18.1 | C31: 0.4 | E31: 0 | F31: 0 | G31: 0 | H31: 0 | J31: Käytä tarvittaessa oikealla puolella olevaa aputaulukkoa määrittämään latauksenaikainen maksimikuormitus. Laskuri ottaa syötetyt arvot huomioon kaapelimitoituksessa. (aktiiviset kentät on merkitty tummemmalla sävyllä) | S31: N40-3 24h, Normaaliteho | T31: =B61 -> 28.10666667 | U31: 19.3 | V31: 0.53 | W31: =(E61-W32) -> 0 | X31: 0 | Y31: 0 | Z31: 0 | AA31: =(G53-AA32) -> 0 | AB31: 0 | AC31: 0 | AD31: 0
A32: N20 / N20-X (7) | B32: 12.7 | C32: 0.4 | E32: 0 | F32: 0 | G32: 0 | H32: 0 | S32: N40-3 12h, Normaaliteho | T32: =(T31+17.1) -> 45.20666667 | U32: =(U31+11) -> 30.3 | V32: 0.53 | W32: 0 | X32: 0 | Y32: 0 | Z32: =(W32*T32) -> 0 | AA32: 0 | AB32: 0 | AC32: 0 | AD32: 0
A33: N40 / N40-X (0) | B33: 6.1 | C33: 0.4 | E33: 0 | F33: 0 | G33: 0 | H33: 0 | S33: N55 24h, Normaaliteho | T33: =B81 -> 6.1 | U33: 3.8 | V33: 0.04 | W33: =(E81-W34-W35-W36) -> 0 | X33: 0 | Y33: 0 | Z33: 0 | AA33: =(G81-AA34-AA35-AA36) -> 0 | AB33: 0 | AC33: 0 | AD33: 0
A34: N40 / N40-X (1) | B34: 8.388 | C34: 0.4 | E34: 0 | F34: 0 | G34: 0 | H34: 0 | J34: Keskusakusto | S34: N55 12h, Normaaliteho | T34: 9.7 | U34: =(U33+2) -> 5.8 | V34: 0.96 | W34: 0 | X34: 0 | Y34: 0 | Z34: =(W34*T34) -> 0 | AA34: 0 | AB34: 0 | AC34: 0 | AD34: 0
A35: N40 / N40-X (2) | B35: 11.82 | C35: 0.4 | E35: 0 | F35: 0 | G35: 0 | H35: 0 | J35: 1. Keskusakustojärjestelmän kaapelikuormitusta määrittäessä käytetään valaisinten aktiivitilan kuormitusta vastaavia arvoja | S35: N55 24h, Hi-Power | T35: 13.8 | U35: =(U33+2) -> 5.8 | V35: 0.04 | W35: 0 | X35: 0 | Y35: 0 | Z35: =(W35*T35) -> 0 | AA35: 0 | AB35: 0 | AC35: 0 | AD35: 0
A36: N40 / N40-X (3) | B36: 15.252 | C36: 0.4 | E36: 0 | F36: 0 | G36: 0 | H36: 0 | J36: 2. Merkitse linjalla olevien turva- ja opastevalojen määrät "AKTIIVITILA"- riville. Opastevaloilla = "TEHDASASETUS" | S36: N55 12h, Hi-Power | T36: 32 | U36: =(U33+13) -> 16.8 | V36: 0.96 | W36: 0 | X36: 0 | Y36: 0 | Z36: =(W36*T36) -> 0 | AA36: 0 | AB36: 0 | AC36: 0 | AD36: 0
A37: N40 / N40-X (4) TEHDASAS. | B37: 20.4 | C37: 0.4 | E37: 0 | F37: 0 | G37: 0 | H37: 0 | J37: 3. Keskusakustokäyttöä varten on määritettävä akuston riittävä toiminta-aika | S37: N55-3 24h, Normaaliteho | T37: =B89 -> 9.7 | U37: 6 | V37: 0.04 | W37: =(E89-W38-W39-W40) -> 0 | X37: 0 | Y37: 0 | Z37: 0 | AA37: =(G89-AA38-AA39-AA40) -> 0 | AB37: 0 | AC37: 0 | AD37: 0
A38: N40 / N40-X (5) | B38: 23.26 | C38: 0.4 | E38: 0 | F38: 0 | G38: 0 | H38: 0 | J38: 4. Syötä akkulaskuriiin haluttu "varakäyntiaika" sekä "valittu akkukoko" | S38: N55-3 12h, Normaaliteho | T38: 28.3 | U38: =(U37+11) -> 17 | V38: 0.96 | W38: 0 | X38: 0 | Y38: 0 | Z38: =(W38*T38) -> 0 | AA38: 0 | AB38: 0 | AC38: 0 | AD38: 0
A39: N40 / N40-X (6) | B39: 26.12 | C39: 0.4 | E39: 0 | F39: 0 | G39: 0 | H39: 0 | J39: 5. Laskuri ilmoittaa, onko akkumitoitus riittävä | S39: N55-3 24h, Hi-Power | T39: 13.8 | U39: =(U37+11) -> 17 | V39: 0.04 | W39: 0 | X39: 0 | Y39: 0 | Z39: =(W39*T39) -> 0 | AA39: 0 | AB39: 0 | AC39: 0 | AD39: 0
A40: N40 / N40-X (7) | B40: 20.4 | C40: 0.4 | E40: 0 | F40: 0 | G40: 0 | H40: 0 | S40: N55-3 12h, Hi-Power | T40: 32 | U40: =(U37+15) -> 21 | V40: 0.96 | W40: 0 | X40: 0 | Y40: 0 | Z40: =(W40*T40) -> 0 | AA40: 0 | AB40: 0 | AC40: 0 | AD40: 0
A41: N68-C3/ N68-O3 (0) TEHDASAS. | B41: 22 | C41: 0.4 | E41: 0 | F41: 0 | G41: 0 | H41: 0 | S41: N89-C/N89-O 24h, Normaaliteho | T41: =B97 -> 16.5 | U41: 10.2 | V41: 0.08 | W41: =(E97-W42) -> 0 | X41: 0 | Y41: 0 | Z41: 0 | AA41: =(G97-AA42) -> 0 | AB41: 0 | AC41: 0 | AD41: 0
A42: N68-C3/ N68-O3 (1) | B42: 25.24 | C42: 0.4 | E42: 0 | F42: 0 | G42: 0 | H42: 0 | S42: N89-C/N89-O 12h, Normaaliteho | T42: =(T41+11) -> 27.5 | U42: =(U41+6.5) -> 16.7 | V42: 6.82 | W42: 0 | X42: 0 | Y42: 0 | Z42: =(W42*T42) -> 0 | AA42: 0 | AB42: 0 | AC42: 0 | AD42: 0
A43: N68-C3/ N68-O3 (2) | B43: 28.48 | C43: 0.4 | E43: 0 | F43: 0 | G43: 0 | H43: 0 | S43: N89-C-3/N89-O-3 24h, Normaaliteho | T43: 44.5 | U43: 27.6 | V43: 0.08 | W43: =(E105-W44) -> 0 | X43: 0 | Y43: 0 | Z43: 0 | AA43: =(G105-AA44) -> 0 | AB43: 0 | AC43: 0 | AD43: 0
A44: N68-C3/ N68-O3 (3) | B44: 31.72 | C44: 0.4 | E44: 0 | F44: 0 | G44: 0 | H44: 0 | S44: N89-C-3/N89-O-3 12h, Normaaliteho | T44: =(T43+36) -> 80.5 | U44: =(U43+22.5) -> 50.1 | V44: 6.82 | W44: 0 | X44: 0 | Y44: 0 | Z44: =(W44*T44) -> 0 | AA44: 0 | AB44: 0 | AC44: 0 | AD44: 0
A45: N68-C3/ N68-O3 (4) | B45: 38.2 | C45: 0.4 | E45: 0 | F45: 0 | G45: 0 | H45: 0 | S45: N40C 24h, Normaaliteho | T45: =B117 -> 50.5 | U45: 31.3 | V45: 0.08 | W45: =(E117-W46) -> 0 | X45: 0 | Y45: 0 | Z45: 0 | AA45: =(G117-AA46) -> 0 | AB45: 0 | AC45: 0 | AD45: 0
A46: N68-C3/ N68-O3 (5) | B46: 44.68 | C46: 0.4 | E46: 0 | F46: 0 | G46: 0 | H46: 0 | S46: N40C 12h, Normaaliteho | T46: =(T45+11) -> 61.5 | U46: =(U45+6.5) -> 37.8 | V46: 6.82 | W46: 0 | X46: 0 | Y46: 0 | Z46: =(W46*T46) -> 0 | AA46: 0 | AB46: 0 | AC46: 0 | AD46: 0
A47: N68-C3/ N68-O3 (6) | B47: 50.512 | C47: 0.4 | E47: 0 | F47: 0 | G47: 0 | H47: 0 | S47: N40C-3 24h, Normaaliteho | T47: 78.5 | U47: =(31.3+6.8) -> 38.1 | V47: 0.08 | W47: =(E125-W48) -> 0 | X47: 0 | Y47: 0 | Z47: 0 | AA47: =(G125-AA48) -> 0 | AB47: 0 | AC47: 0 | AD47: 0
A48: N68-C3/ N68-O3 (7) AKTIIVITILA | B48: 50.512 | C48: 0.4 | E48: 0 | F48: 0 | G48: 0 | H48: 0 | S48: N40C-3 12h, Normaaliteho | T48: =(78.5+36) -> 114.5 | U48: =(48.7+22.5) -> 71.2 | V48: 6.82 | W48: 0 | X48: 0 | Y48: 0 | Z48: 0 | AA48: 0 | AB48: 0 | AC48: 0 | AD48: 0
A49: N20-3 / N20-X3 (0) | B49: 13.8 | C49: 0.4 | E49: 0 | F49: 0 | G49: 0 | H49: =(B49*G49) -> 0 | S49: N70 24h, Normaaliteho | T49: =B69 -> 50.5 | U49: 31.3 | V49: 0.08 | W49: =(E69-W50) -> 0 | X49: 0 | Y49: 0 | Z49: =(W49*T49) -> 0 | AA49: =(G69-AA50) -> 0 | AB49: 0 | AC49: 0 | AD49: 0
A50: N20-3 / N20-X3 (1) | B50: 15 | C50: 0.4 | E50: 0 | F50: 0 | G50: 0 | H50: 0 | S50: N70 12h, Normaaliteho | T50: =(50.5+11) -> 61.5 | U50: =(31.3+6.8) -> 38.1 | V50: 0.92 | W50: 0 | X50: 0 | Y50: 0 | Z50: =(W50*T50) -> 0 | AA50: 0 | AB50: 0 | AC50: 0 | AD50: 0
A51: N20-3 / N20-X3 (2) | B51: 16.3 | C51: 0.4 | E51: 0 | F51: 0 | G51: 0 | H51: 0 | S51: N70-3 24h, Normaaliteho | T51: =B77 -> 78.5 | U51: 48.7 | V51: 0.08 | W51: =(E77-W52) -> 0 | X51: 0 | Y51: 0 | Z51: =(W51*T51) -> 0 | AA51: =(G77-AA52) -> 0 | AB51: 0 | AC51: 0 | AD51: 0
A52: N20-3 / N20-X3 (3) | B52: 17.5 | C52: 0.4 | E52: 0 | F52: 0 | G52: 0 | H52: 0 | S52: N70-3 12h, Normaaliteho | T52: =(78.5+36) -> 114.5 | U52: =(48.7+22.5) -> 71.2 | V52: 0.92 | W52: 0 | X52: 0 | Y52: 0 | Z52: =(W52*T52) -> 0 | AA52: 0 | AB52: 0 | AC52: 0 | AD52: 0
A53: N20-3 / N20-X3 (4) TEHDASAS. | B53: 20.6 | C53: 0.4 | E53: 0 | F53: 0 | G53: 0 | H53: 0 | S53: N-IO | T53: =B129 -> 3.2 | U53: 2 | V53: 0.1 | W53: =(W5) -> 0 | X53: 0 | Y53: 0 | Z53: 0 | AA53: =(AA5) -> 0 | AB53: 0 | AC53: 0 | AD53: =(AA53*T53) -> 0
A54: N20-3 / N20-X3 (5) | B54: 23.1 | C54: 0.4 | E54: 0 | F54: 0 | G54: 0 | H54: 0 | W54: Max. 127 | Z54: Max. 2000 | AA54: Max. 127 | AD54: Max. 2000
A55: N20-3 / N20-X3 (6) | B55: 26.1 | C55: 0.4 | E55: 0 | F55: 0 | G55: 0 | H55: 0 | S55: Yhteensä: | W55: =SUM(W17:W53) -> 0 | X55: =SUM(X17:X53) -> 0 | Y55: =SUM(Y17:Y53) -> 0 | Z55: =SUM(Z17:Z54) -> 0 | AA55: =SUM(AA17:AA53) -> 0 | AB55: =SUM(AB17:AB53) -> 0 | AC55: =SUM(AC17:AC53) -> 0 | AD55: =SUM(AD17:AD53) -> 0
A56: N20-3 / N20-X3 (7) | B56: 20.6 | C56: 0.4 | E56: 0 | F56: 0 | G56: 0 | H56: 0 | W56: =(W55/127) -> 0 | Z56: =(Z55/2000) -> 0 | AA56: =(AA55/127) -> 0 | AD56: =(AD55/2000) -> 0
A57: N40-3 / N40-X3 (0) | B57: 13.80666667 | C57: 0.4 | E57: 0 | F57: 0 | G57: 0 | H57: 0
A58: N40-3 / N40-X3 (1) | B58: 16.09466667 | C58: 0.4 | E58: 0 | F58: 0 | G58: 0 | H58: 0
A59: N40-3 / N40-X3 (2) | B59: 19.52666667 | C59: 0.4 | E59: 0 | F59: 0 | G59: 0 | H59: 0
A60: N40-3 / N40-X3 (3) | B60: 22.95866667 | C60: 0.4 | E60: 0 | F60: 0 | G60: 0 | H60: 0
A61: N40-3 / N40-X3 (4) TEHDASAS. | B61: 28.10666667 | C61: 0.4 | E61: 0 | F61: 0 | G61: 0 | H61: 0
A62: N40-3 / N40-X3 (5) | B62: 30.96666667 | C62: 0.4 | E62: 0 | F62: 0 | G62: 0 | H62: 0
A63: N40-3 / N40-X3 (6) | B63: 33.82666667 | C63: 0.4 | E63: 0 | F63: 0 | G63: 0 | H63: 0
A64: N40-3 / N40-X3 (7) | B64: 28.10666667 | C64: 0.4 | E64: 0 | F64: 0 | G64: 0 | H64: 0
A65: N70 / N70-X (0) | B65: 16.5 | C65: 0.4 | E65: 0 | F65: 0 | G65: 0 | H65: 0
A66: N70 / N70-X (1) | B66: 23.3 | C66: 0.4 | E66: 0 | F66: 0 | G66: 0 | H66: 0
A67: N70 / N70-X (2) | B67: 30.1 | C67: 0.4 | E67: 0 | F67: 0 | G67: 0 | H67: 0
A68: N70 / N70-X (3) | B68: 36.9 | C68: 0.4 | E68: 0 | F68: 0 | G68: 0 | H68: 0
A69: N70 / N70-X (4) TEHDASASETUS | B69: 50.5 | C69: 0.4 | E69: 0 | F69: 0 | G69: 0 | H69: 0
A70: N70 / N70-X (5) | B70: 57.3 | C70: 0.4 | E70: 0 | F70: 0 | G70: 0 | H70: 0
A71: N70 / N70-X (6) | B71: 70.9 | C71: 0.4 | E71: 0 | F71: 0 | G71: 0 | H71: 0
A72: N70 / N70-X (7) | B72: 43.7 | C72: 0.4 | E72: 0 | F72: 0 | G72: 0 | H72: 0
A73: N70-3 / N70-X-3 (0) | B73: 44.5 | C73: 0.4 | E73: 0 | F73: 0 | G73: 0 | H73: =(B73*G73) -> 0
A74: N70-3 / N70-X-3 (1) | B74: 51.3 | C74: 0.4 | E74: 0 | F74: 0 | G74: 0 | H74: 0
A75: N70-3 / N70-X-3 (2) | B75: 58.1 | C75: 0.4 | E75: 0 | F75: 0 | G75: 0 | H75: 0
A76: N70-3 / N70-X-3 (3) | B76: 64.9 | C76: 0.4 | E76: 0 | F76: 0 | G76: 0 | H76: 0
A77: N70-3 / N70-X-3 (4) TEHDASASETUS | B77: 78.5 | C77: 0.4 | E77: 0 | F77: 0 | G77: 0 | H77: 0
A78: N70-3 / N70-X-3 (5) | B78: 85.3 | C78: 0.4 | E78: 0 | F78: 0 | G78: 0 | H78: 0
A79: N70-3 / N70-X-3 (6) | B79: 98.9 | C79: 0.4 | E79: 0 | F79: 0 | G79: 0 | H79: 0
A80: N70-3 / N70-X-3 (7) | B80: 71.7 | C80: 0.4 | E80: 0 | F80: 0 | G80: 0 | H80: 0
A81: N55 (0) TEHDASASETUS | B81: 6.1 | C81: 0.4 | E81: 0 | F81: 0 | G81: 0 | H81: =(B81*G81) -> 0
A82: N55 (1) | B82: 9.5 | C82: 0.4 | E82: 0 | F82: 0 | G82: 0 | H82: 0
A83: N55 (2) | B83: 12.9 | C83: 0.4 | E83: 0 | F83: 0 | G83: 0 | H83: 0
A84: N55 (3) | B84: 16.2 | C84: 0.4 | E84: 0 | F84: 0 | G84: 0 | H84: 0
A85: N55 (4) | B85: 23 | C85: 0.4 | E85: 0 | F85: 0 | G85: 0 | H85: 0
A86: N55 (5) | B86: 29.8 | C86: 0.4 | E86: 0 | F86: 0 | G86: 0 | H86: 0
A87: N55 (6) | B87: 35.8 | C87: 0.4 | E87: 0 | F87: 0 | G87: 0 | H87: 0
A88: N55 (7) AKTIIVITILA | B88: 35.8 | C88: 0.4 | E88: 0 | F88: 0 | G88: 0 | H88: 0
A89: N55-3 (0) TEHDASASETUS | B89: 9.7 | C89: 0.4 | E89: 0 | F89: 0 | G89: 0 | H89: 0
A90: N55-3 (1) | B90: 13.1 | C90: 0.4 | E90: 0 | F90: 0 | G90: 0 | H90: 0
A91: N55-3 (2) | B91: 16.5 | C91: 0.4 | E91: 0 | F91: 0 | G91: 0 | H91: 0
A92: N55-3 (3) | B92: 19.8 | C92: 0.4 | E92: 0 | F92: 0 | G92: 0 | H92: 0
A93: N55-3 (4) | B93: 26.6 | C93: 0.4 | E93: 0 | F93: 0 | G93: 0 | H93: 0
A94: N55-3 (5) | B94: 33.4 | C94: 0.4 | E94: 0 | F94: 0 | G94: 0 | H94: 0
A95: N55-3 (6) | B95: 39.5 | C95: 0.4 | E95: 0 | F95: 0 | G95: 0 | H95: 0
A96: N55-3 (7) AKTIIVITILA | B96: 39.5 | C96: 0.4 | E96: 0 | F96: 0 | G96: 0 | H96: 0
A97: N89-C/N89-O (0) TEHDASASETUS | B97: 16.5 | C97: 0.4 | E97: 0 | F97: 0 | G97: 0 | H97: 0
A98: N89-C/N89-O (1) | B98: 30.1 | C98: 0.4 | E98: 0 | F98: =(B98*E98) -> 0 | G98: 0 | H98: 0
A99: N89-C/N89-O (2) | B99: 36.9 | C99: 0.4 | E99: 0 | F99: 0 | G99: 0 | H99: 0
A100: N89-C/N89-O (3) | B100: 43.7 | C100: 0.4 | E100: 0 | F100: 0 | G100: 0 | H100: 0
A101: N89-C/N89-O (4) | B101: 50.5 | C101: 0.4 | E101: 0 | F101: 0 | G101: 0 | H101: 0
A102: N89-C/N89-O (5) | B102: 64.1 | C102: 0.4 | E102: 0 | F102: 0 | G102: 0 | H102: 0
A103: N89-C/N89-O (6) AKTIIVITILA | B103: 152.5 | C103: 0.4 | E103: 0 | F103: 0 | G103: 0 | H103: 0
A104: N89-C/N89-O (7) | B104: 234.1 | C104: 0.4 | E104: 0 | F104: 0 | G104: 0 | H104: 0
A105: N89-C3/N89-O3 (0) TEHDASASETUS | B105: 44.5 | C105: 0.4 | E105: 0 | F105: 0 | G105: 0 | H105: 0
A106: N89-C3/N89-O3 (1) | B106: 58.1 | C106: 0.4 | E106: 0 | F106: 0 | G106: 0 | H106: 0
A107: N89-C3/N89-O3 (2) | B107: 64.9 | C107: 0.4 | E107: 0 | F107: 0 | G107: 0 | H107: 0
A108: N89-C3/N89-O3 (3) | B108: 71.7 | C108: 0.4 | E108: 0 | F108: 0 | G108: 0 | H108: 0
A109: N89-C3/N89-O3 (4) | B109: 78.5 | C109: 0.4 | E109: 0 | F109: 0 | G109: 0 | H109: 0
A110: N89-C3/N89-O3 (5) | B110: 92.1 | C110: 0.4 | E110: 0 | F110: 0 | G110: 0 | H110: 0
A111: N89-C3/N89-O3 (6) AKTIIVITILA | B111: 180.5 | C111: 0.4 | E111: 0 | F111: 0 | G111: 0 | H111: 0
A112: N89-C3/N89-O3 (7) | B112: 262.1 | C112: 0.4 | E112: 0 | F112: 0 | G112: 0 | H112: 0
A113: N40C/N40C (0) | B113: 16.5 | C113: 0.4 | E113: 0 | F113: 0 | G113: 0 | H113: =(B113*G113) -> 0
A114: N40C/N40C (1) | B114: 30.1 | C114: 0.4 | E114: 0 | F114: =(B114*E114) -> 0 | G114: 0 | H114: 0
A115: N40C/N40C (2) | B115: 36.9 | C115: 0.4 | E115: 0 | F115: 0 | G115: 0 | H115: 0
A116: N40C/N40C (3) | B116: 43.7 | C116: 0.4 | E116: 0 | F116: 0 | G116: 0 | H116: 0
A117: N40C/N40C (4) TEHDASASETUS | B117: 50.5 | C117: 0.4 | E117: 0 | F117: 0 | G117: 0 | H117: 0
A118: N40C/N40C (5) | B118: 64.1 | C118: 0.4 | E118: 0 | F118: 0 | G118: 0 | H118: 0
A119: N40C/N40C (6) | B119: 70.9 | C119: 0.4 | E119: 0 | F119: 0 | G119: 0 | H119: 0
A120: N40C/N40C (7) AKTIIVITILA | B120: 234.1 | C120: 0.4 | E120: 0 | F120: 0 | G120: 0 | H120: 0
A121: N40C-3/N40C-3 (0) | B121: 44.5 | C121: 0.4 | E121: 0 | F121: 0 | G121: 0 | H121: 0
A122: N40C-3/N40C-3 (1) | B122: 58.1 | C122: 0.4 | E122: 0 | F122: 0 | G122: 0 | H122: 0
A123: N40C-3/N40C-3 (2) | B123: 64.9 | C123: 0.4 | E123: 0 | F123: 0 | G123: 0 | H123: 0
A124: N40C-3/N40C-3 (3) | B124: 71.7 | C124: 0.4 | E124: 0 | F124: 0 | G124: 0 | H124: 0
A125: N40C-3/N40C-3 (4) TEHDASASETUS | B125: 78.5 | C125: 0.4 | E125: 0 | F125: 0 | G125: 0 | H125: 0
A126: N40C-3/N40C-3 (5) | B126: 92.1 | C126: 0.4 | E126: 0 | F126: 0 | G126: 0 | H126: 0
A127: N40C-3/N40C-3 (6) | B127: 98.9 | C127: 0.4 | E127: 0 | F127: 0 | G127: 0 | H127: 0
A128: N40C-3/N40C-3 (7) AKTIIVITILA | B128: 262.1 | C128: 0.4 | E128: 0 | F128: 0 | G128: 0 | H128: 0
A129: N-IO | B129: 3.2 | E129: 0 | F129: =(B129*E129) -> 0 | G129: 0 | H129: 0
E131: Määrä | F131: Määrä | G131: Määrä | H131: Määrä
A132: Yhteensä: | E132: =SUM(E17:E129) -> 0 | F132: =SUM(F17:F129) -> 0 | G132: =SUM(G17:G129) -> 0 | H132: =SUM(H17:H129) -> 0
E133: =IF(E132<128,"Ok","Virhe") -> Ok | F133: =IF(F132<2000,"Ok","Virhe") -> Ok | G133: =IF(G132<128,"Ok","Virhe") -> Ok | H133: =IF(H132<2000,"Ok","Virhe") -> Ok | J133: Keskusakuston mitoitus
J134: Tarvittava akkukoko | M134: =((F143*M136*2)/1000) -> 0.12 | N134: Ah
A135: Kulutus | E135: Määrä | F135: Virta | H135: Max. kuorma
E136: kpl | F136: (mA) | H136: Lataus (mA) | J136: Varakäyntiaika | M136: 1 | N136: tuntia
A137: Keskus: | F137: =F10 -> 60 | H137: -
A138: Linja 1 | E138: =E132 -> 0 | F138: =(F132) -> 0 | H138: =(Z55) -> 0
A139: Linja 2 | E139: =G132 -> 0 | F139: =H132 -> 0 | H139: =(AD55) -> 0 | J139: Valittu akkukoko | L139: =IF(M139>M134,"OK","Ei voida ladata") -> OK | M139: 20 | N139: Ah
J141: Toteutuva varakäyntiaika | M141: =(M139*1000)/(F143*2) -> 166.6666667 | N141: h
E142: kpl | F142: (mA)
A143: Yhteensä: | E143: =SUM(E138:E142) -> 0 | F143: =SUM(F137:F142) -> 60
E147: Linja 1 | F147: Linja 2
A148: Väylän pituus [m] (max. 1000m) | E148: 1 | F148: 1
E149: =IF(E148<=1000,"OK","TOO LONG") -> OK | F149: =IF(F148<=1000,"OK","TOO LONG") -> OK
A150: Max virta [mA] | E150: =IF(F138<H138,H138,F138) -> 0 | F150: =IF(F139<H139,H139,F139) -> 0
C151: 0.7 | D151: yF
C152: 0.7 | D152: mH
A155: Osoitteet silmukassa tasavälein
A156: KLMA 2x0.8 74 ohm / km | E156: =IF(LOOKUP(E148,#REF!,#REF!)>E150,"OK","EI OK") ->  | F156: =IF(LOOKUP(F148,#REF!,#REF!)>F150,"OK","EI OK") ->  | G156: =IF(LOOKUP(G148,#REF!,#REF!)>G150,"OK","EI OK") ->  | H156: =IF(LOOKUP(H148,#REF!,#REF!)>H150,"OK","EI OK") -> 
A157: KLMA 4x0.8 37 ohm / km | E157: =IF(LOOKUP(E148,#REF!,#REF!)>E150,"OK","EI OK") ->  | F157: =IF(LOOKUP(F148,#REF!,#REF!)>F150,"OK","EI OK") ->  | G157: =IF(LOOKUP(G148,#REF!,#REF!)>G150,"OK","EI OK") ->  | H157: =IF(LOOKUP(H148,#REF!,#REF!)>H150,"OK","EI OK") -> 
A158: KLMA 2kpl 4x0.8 18,5 ohm / km | E158: =IF(LOOKUP(E148,#REF!,#REF!)>E150,"OK","EI OK") ->  | F158: =IF(LOOKUP(F148,#REF!,#REF!)>F150,"OK","EI OK") ->  | G158: =IF(LOOKUP(G148,#REF!,#REF!)>G150,"OK","EI OK") ->  | H158: =IF(LOOKUP(H148,#REF!,#REF!)>H150,"OK","EI OK") -> 
A160: Osoitteet linjassa tasavälein
A161: KLMA 2x0.8 74 ohm / km | E161: =IF(AM225>=25,"OK","TOO LONG") ->  | F161: =IF(BE225>=25,"OK","TOO LONG") -> 
A162: KLMA 4x0.8 37 ohm / km | E162: =IF(AM263>=25,"OK","TOO LONG") ->  | F162: =IF(BE263>=25,"OK","TOO LONG") -> 
A163: ELQYB 2x1,0 50 ohm / km | E163: =IF(AM301>=25,"OK","TOO LONG") ->  | F163: =IF(BE301>=25,"OK","TOO LONG") -> 
A164: ELQYB 4x1,0 25 ohm / km | E164: =IF(AM339>=25,"OK","TOO LONG") ->  | F164: =IF(BE339>=25,"OK","TOO LONG") -> 
A165: KLM 2x1,0 50 ohm / km | E165: =IF(AM301>=25,"OK","TOO LONG") ->  | F165: =IF(BE301>=25,"OK","TOO LONG") -> 
A166: KLM 4x1,0 25 ohm / km | E166: =IF(AM339>=25,"OK","TOO LONG") ->  | F166: =IF(BE339>=25,"OK","TOO LONG") -> 
A167: Osoitteet silmukan päässä | E167: =IF(AM342>=25,"OK","TOO LONG") -> TOO LONG | F167: =IF(BE342>=25,"OK","TOO LONG") -> TOO LONG
A168: KLMA 2x0.8 74 ohm / km | E168: TOO LONG | F168: TOO LONG | G168: =IF(LOOKUP(G148,#REF!,#REF!)>G150,"OK","EI OK") ->  | H168: =IF(LOOKUP(H148,#REF!,#REF!)>H150,"OK","EI OK") -> 
A169: KLMA 4x0.8 37 ohm / km | E169: TOO LONG | F169: TOO LONG | G169: =IF(LOOKUP(G148,#REF!,#REF!)>G150,"OK","EI OK") ->  | H169: =IF(LOOKUP(H148,#REF!,#REF!)>H150,"OK","EI OK") -> 
A170: KLMA 2kpl 4x0.8 18,5 ohm / km | E170: TOO LONG | F170: TOO LONG | G170: =IF(LOOKUP(G148,#REF!,#REF!)>G150,"OK","EI OK") ->  | H170: =IF(LOOKUP(H148,#REF!,#REF!)>H150,"OK","EI OK") -> 
A172: Osoitteet linjan päässä
A173: KLMA 2x0.8 74 ohm / km | E173: =IF(G227<=15,"OK","TOO LONG") -> OK | F173: =IF(H227<=15,"OK","TOO LONG") -> OK
A174: KLMA 4x0.8 37 ohm / km | E174: =IF(G228<=15,"OK","TOO LONG") -> OK | F174: OK
A175: ELQYB 2x1,0 50 ohm / km | E175: OK | F175: OK
A176: ELQYB 4x1,0 25 ohm / km | E176: OK | F176: OK
A177: KLM 2x1,0 50 ohm / km | E177: =IF(G229<=15,"OK","TOO LONG") -> OK | F177: =IF(H229<=15,"OK","TOO LONG") -> OK
A178: KLM 4x1,0 25 ohm / km | E178: =IF(G230<=15,"OK","TOO LONG") -> OK | F178: =IF(H230<=15,"OK","TOO LONG") -> OK
A182: Loop cabling equal distance
E183: jännite 25V-40V | F183: N89 28V-40V
G184: ELQYB/KLM 4x1.0 25 ohm/km | I184: ELQYB/KLM 2x1.0 50 ohms/km | K184: KLMA 4x0.8 37 ohm/km | M184: KLMA 2x0.8 74 ohm/km | O184: [m] | Q184: metrit
G185: I, [mA] | H185: I, [mA] | I185: I, [mA] | J185: I, [mA] | K185: I, [mA] | L185: I, [mA] | M185: I, [mA] | N185: I, [mA]
G186: =((15/(2*25*Q186*0.001))*1000) -> 6000 | H186: =((15/(2*25*P186*0.001))*1000) -> 300 | I186: =((15/(2*50*Q186*0.001))*1000) -> 3000 | J186: =((15/(2*50*P186*0.001))*1000) -> 150 | K186: =((15/(2*37*Q186*0.001))*1000) -> 4054.054054 | L186: =((15/(2*37*P186*0.001))*1000) -> 202.7027027 | M186: =((15/(2*74*Q186*0.001))*1000) -> 2027.027027 | N186: =((15/(2*74*P186*0.001))*1000) -> 101.3513514 | O186: 0 | P186: 1000 | Q186: 50
G187: 3000 | H187: =((15/(2*25*P187*0.001))*1000) -> 333.3333333 | I187: 1500 | J187: =((15/(2*50*P187*0.001))*1000) -> 166.6666667 | K187: 2027.027027 | L187: =((15/(2*37*P187*0.001))*1000) -> 225.2252252 | M187: 1013.513514 | N187: =((15/(2*74*P187*0.001))*1000) -> 112.6126126 | O187: 280 | P187: 900 | Q187: 100
G188: 1500 | H188: 375 | I188: 750 | J188: 187.5 | K188: 1013.513514 | L188: 253.3783784 | M188: 506.7567568 | N188: 126.6891892 | O188: 500 | P188: 800 | Q188: 200
G189: 1000 | H189: 428.5714286 | I189: 500 | J189: 214.2857143 | K189: 675.6756757 | L189: 289.5752896 | M189: 337.8378378 | N189: 144.7876448 | O189: 1000 | P189: 700 | Q189: 300
G190: 750 | H190: 500 | I190: 375 | J190: 250 | K190: 506.7567568 | L190: 337.8378378 | M190: 253.3783784 | N190: 168.9189189 | O190: 1500 | P190: 600 | Q190: 400
G191: 600 | H191: 600 | I191: 300 | J191: 300 | K191: 405.4054054 | L191: 405.4054054 | M191: 202.7027027 | N191: 202.7027027 | O191: 2000 | P191: 500 | Q191: 500
G192: 500 | H192: 750 | I192: 250 | J192: 375 | K192: 337.8378378 | L192: 506.7567568 | M192: 168.9189189 | N192: 253.3783784 | O192: 2001 | P192: 400 | Q192: 600
G193: 428.5714286 | H193: 1000 | I193: 214.2857143 | J193: 500 | K193: 289.5752896 | L193: 675.6756757 | M193: 144.7876448 | N193: 337.8378378 | P193: 300 | Q193: 700
G194: 375 | H194: 1500 | I194: 187.5 | J194: 750 | K194: 253.3783784 | L194: 1013.513514 | M194: 126.6891892 | N194: 506.7567568 | P194: 200 | Q194: 800
G195: 333.3333333 | H195: 3000 | I195: 166.6666667 | J195: 1500 | K195: 225.2252252 | L195: 2027.027027 | M195: 112.6126126 | N195: 1013.513514 | P195: 100 | Q195: 900 | X195: Kaapelin ominaisresistanssi | Z195: 74 | AA195: ohm/km | AP195: Kaapelin ominaisresistanssi | AR195: 74 | AS195: ohm/km
G196: =((15/(2*25*Q196*0.001))*1000) -> 300 | H196: 6000 | I196: =((15/(2*50*Q196*0.001))*1000) -> 150 | J196: 3000 | K196: =((15/(2*37*Q196*0.001))*1000) -> 202.7027027 | L196: 4054.054054 | M196: =((15/(2*74*Q196*0.001))*1000) -> 101.3513514 | N196: 2027.027027 | P196: 50 | Q196: 1000 | X196: Kaapelivastus/silmukka | Z196: =((Z195*Z197)/1000) -> 0.074 | AA196: ohm | AP196: Kaapelivastus/silmukka | AR196: =((AR195*AR197)/1000) -> 0.074 | AS196: ohm
A197: Loop cabling worst case | X197: Kaapelin pituus | Z197: =E148 -> 1 | AA197: m | AP197: Kaapelin pituus | AR197: =F148 -> 1 | AS197: m
X198: Kuormitus | Z198: =(E150/1000) -> 0 | AA198: A | AP198: Kuormitus | AR198: =(F150/1000) -> 0 | AS198: A
G199: ELQYB/KLM 4x1.0 25 ohm/km | I199: ELQYB/KLM 2x1.0 50 ohms/km | K199: KLMA 4x0.8 37 ohm/km | M199: KLMA 2x0.8 74 ohm/km | O199: [m]
G200: I, [mA] | H200: I, [mA] | I200: I, [mA] | J200: I, [mA] | K200: I, [mA] | L200: I, [mA] | M200: I, [mA]
G201: 1230 | H201: 3000 | I201: 635 | J201: 3000 | K201: 835 | L201: 3000 | M201: 415 | N201: 3000 | O201: 1000 | P201: 0 | W201: R1 | X201: =(Z196/10/2) -> 0.0037 | AO201: R1 | AP201: =(AR196/10/2) -> 0.0037
G202: 1370 | H202: 3000 | I202: 680 | J202: 3000 | K202: 925 | L202: 3000 | M202: 460 | N202: 3000 | O202: 900 | P202: 100 | V202: 1 | W202: R2 | X202: =(31/(Z198/10)) ->  | Z202: =(X201+X202+X203) ->  | AA202: =(-X202) ->  | AB202: 0 | AC202: 0 | AD202: 0 | AE202: 0 | AF202: 0 | AG202: 0 | AH202: 0 | AI202: 0 | AK202: 40 | AO202: R2 | AP202: =(31/(AR198/10)) ->  | AR202: =(AP201+AP202+AP203) ->  | AS202: =(-AP202) ->  | AT202: 0 | AU202: 0 | AV202: 0 | AW202: 0 | AX202: 0 | AY202: 0 | AZ202: 0 | BA202: 0 | BC202: 40
G203: 1540 | H203: 3000 | I203: 770 | J203: 3000 | K203: 1040 | L203: 3000 | M203: 520 | N203: 2000 | O203: 800 | P203: 200 | W203: R3 | X203: =(Z196/10/2) -> 0.0037 | Z203: =(-X202) ->  | AA203: =(X204+X205+X206+X202) ->  | AB203: =(-X205) ->  | AC203: 0 | AD203: 0 | AE203: 0 | AF203: 0 | AG203: 0 | AH203: 0 | AI203: 0 | AK203: 0 | AO203: R3 | AP203: =(AR196/10/2) -> 0.0037 | AR203: =(-AP202) ->  | AS203: =(AP204+AP205+AP206+AP202) ->  | AT203: =(-AP205) ->  | AU203: 0 | AV203: 0 | AW203: 0 | AX203: 0 | AY203: 0 | AZ203: 0 | BA203: 0 | BC203: 0
G204: 1765 | H204: 3000 | I204: 880 | J204: 2000 | K204: 1190 | L204: 3000 | M204: 595 | N204: 1350 | O204: 700 | P204: 300 | W204: R4 | X204: =(Z196/10/2) -> 0.0037 | Z204: 0 | AA204: =(-X205) ->  | AB204: =(X207+X208+X209+X205) ->  | AC204: =(-X208) ->  | AD204: 0 | AE204: 0 | AF204: 0 | AG204: 0 | AH204: 0 | AI204: 0 | AK204: 0 | AO204: R4 | AP204: =(AR196/10/2) -> 0.0037 | AR204: 0 | AS204: =(-AP205) ->  | AT204: =(AP207+AP208+AP209+AP205) ->  | AU204: =(-AP208) ->  | AV204: 0 | AW204: 0 | AX204: 0 | AY204: 0 | AZ204: 0 | BA204: 0 | BC204: 0
G205: 2000 | H205: 3000 | I205: 1030 | J205: 1540 | K205: 1380 | L205: 2000 | M205: 695 | N205: 1040 | O205: 600 | P205: 400 | V205: 2 | W205: R5 | X205: =(31/(Z198/10)) ->  | Z205: 0 | AA205: 0 | AB205: =(-X208) ->  | AC205: =(X210+X211+X212+X208) ->  | AD205: =(-X211) ->  | AE205: 0 | AF205: 0 | AG205: 0 | AH205: 0 | AI205: 0 | AK205: 0 | AO205: R5 | AP205: =(31/(AR198/10)) ->  | AR205: 0 | AS205: 0 | AT205: =(-AP208) ->  | AU205: =(AP210+AP211+AP212+AP208) ->  | AV205: =(-AP211) ->  | AW205: 0 | AX205: 0 | AY205: 0 | AZ205: 0 | BA205: 0 | BC205: 0
G206: 2000 | H206: 3000 | I206: 1235 | J206: 1235 | K206: 1670 | L206: 1670 | M206: 835 | N206: 835 | O206: 500 | P206: 500 | W206: R6 | X206: =(Z196/10/2) -> 0.0037 | Z206: 0 | AA206: 0 | AB206: 0 | AC206: =(-X211) ->  | AD206: =(X213+X214+X215+X211) ->  | AE206: =(-X214) ->  | AF206: 0 | AG206: 0 | AH206: 0 | AI206: 0 | AK206: 0 | AO206: R6 | AP206: =(AR196/10/2) -> 0.0037 | AR206: 0 | AS206: 0 | AT206: 0 | AU206: =(-AP211) ->  | AV206: =(AP213+AP214+AP215+AP211) ->  | AW206: =(-AP214) ->  | AX206: 0 | AY206: 0 | AZ206: 0 | BA206: 0 | BC206: 0
G207: 2000 | H207: 2000 | I207: 1540 | J207: 1030 | K207: 2000 | L207: 1380 | M207: 1040 | N207: 695 | O207: 400 | P207: 600 | W207: R7 | X207: =(Z196/10/2) -> 0.0037 | Z207: 0 | AA207: 0 | AB207: 0 | AC207: 0 | AD207: =(-X214) ->  | AE207: =(X216+X217+X218+X214) ->  | AF207: =(-X217) ->  | AG207: 0 | AH207: 0 | AI207: 0 | AK207: 0 | AO207: R7 | AP207: =(AR196/10/2) -> 0.0037 | AR207: 0 | AS207: 0 | AT207: 0 | AU207: 0 | AV207: =(-AP214) ->  | AW207: =(AP216+AP217+AP218+AP214) ->  | AX207: =(-AP217) ->  | AY207: 0 | AZ207: 0 | BA207: 0 | BC207: 0
G208: 2000 | H208: 1765 | I208: 2000 | J208: 880 | K208: 2000 | L208: 1190 | M208: 1350 | N208: 595 | O208: 300 | P208: 700 | V208: 3 | W208: R8 | X208: =(31/(Z198/10)) ->  | Z208: 0 | AA208: 0 | AB208: 0 | AC208: 0 | AD208: 0 | AE208: =(-X217) ->  | AF208: =(X216+X217+X218+X214) ->  | AG208: =(-X220) ->  | AH208: 0 | AI208: 0 | AK208: 0 | AO208: R8 | AP208: =(31/(AR198/10)) ->  | AR208: 0 | AS208: 0 | AT208: 0 | AU208: 0 | AV208: 0 | AW208: =(-AP217) ->  | AX208: =(AP216+AP217+AP218+AP214) ->  | AY208: =(-AP220) ->  | AZ208: 0 | BA208: 0 | BC208: 0
G209: 2000 | H209: 1540 | I209: 2000 | J209: 770 | K209: 2000 | L209: 1040 | M209: 2000 | N209: 520 | O209: 200 | P209: 800 | W209: R9 | X209: =(Z196/10/2) -> 0.0037 | Z209: 0 | AA209: 0 | AB209: 0 | AC209: 0 | AD209: 0 | AE209: 0 | AF209: =(-X220) ->  | AG209: =(X222+X223+X224+X220) ->  | AH209: =(-X223) ->  | AI209: 0 | AK209: 0 | AO209: R9 | AP209: =(AR196/10/2) -> 0.0037 | AR209: 0 | AS209: 0 | AT209: 0 | AU209: 0 | AV209: 0 | AW209: 0 | AX209: =(-AP220) ->  | AY209: =(AP222+AP223+AP224+AP220) ->  | AZ209: =(-AP223) ->  | BA209: 0 | BC209: 0
G210: 2000 | H210: 1370 | I210: 2000 | J210: 680 | K210: 2000 | L210: 925 | M210: 2000 | N210: 460 | O210: 100 | P210: 900 | W210: R10 | X210: =(Z196/10/2) -> 0.0037 | Z210: 0 | AA210: 0 | AB210: 0 | AC210: 0 | AD210: 0 | AE210: 0 | AF210: 0 | AG210: =(-X223) ->  | AH210: =(X225+X226+X227+X223) ->  | AI210: =(-X226) ->  | AK210: 0 | AO210: R10 | AP210: =(AR196/10/2) -> 0.0037 | AR210: 0 | AS210: 0 | AT210: 0 | AU210: 0 | AV210: 0 | AW210: 0 | AX210: 0 | AY210: =(-AP223) ->  | AZ210: =(AP225+AP226+AP227+AP223) ->  | BA210: =(-AP226) ->  | BC210: 0
G211: 2000 | H211: 1230 | I211: 2000 | J211: 610 | K211: 2000 | L211: 835 | M211: 2000 | N211: 415 | O211: 0 | P211: 1000 | V211: 4 | W211: R11 | X211: =(31/(Z198/10)) ->  | Z211: 0 | AA211: 0 | AB211: 0 | AC211: 0 | AD211: 0 | AE211: 0 | AF211: 0 | AG211: 0 | AH211: =(-X226) ->  | AI211: =(X228+X229+X230+X226) ->  | AK211: 0 | AO211: R11 | AP211: =(31/(AR198/10)) ->  | AR211: 0 | AS211: 0 | AT211: 0 | AU211: 0 | AV211: 0 | AW211: 0 | AX211: 0 | AY211: 0 | AZ211: =(-AP226) ->  | BA211: =(AP228+AP229+AP230+AP226) ->  | BC211: 0
W212: R12 | X212: =(Z196/10/2) -> 0.0037 | AO212: R12 | AP212: =(AR196/10/2) -> 0.0037
W213: R13 | X213: =(Z196/10/2) -> 0.0037 | AO213: R13 | AP213: =(AR196/10/2) -> 0.0037
V214: 5 | W214: R14 | X214: =(31/(Z198/10)) ->  | Z214: =MINVERSE(Z202:AI211) ->  | AK214: =MMULT(_xlfn.ANCHORARRAY(Z214),AK202:AK211) ->  | AO214: R14 | AP214: =(31/(AR198/10)) ->  | AR214: =MINVERSE(AR202:BA211) ->  | BC214: =MMULT(_xlfn.ANCHORARRAY(AR214),BC202:BC211) -> 
W215: R15 | X215: =(Z196/10/2) -> 0.0037 | AO215: R15 | AP215: =(AR196/10/2) -> 0.0037
W216: R16 | X216: =(Z196/10/2) -> 0.0037 | AO216: R16 | AP216: =(AR196/10/2) -> 0.0037
... 116 more rows

Sheet Neptolux ENG
A1: Calculator for load and cable legth | I1: Project:
A2: ='Neptolux FIN'!A2 -> v 1.1
A3: Nepto 3K | I3: Date:
B4: Lepo | E4: Amount | F4: Consumption, mA
A5: Nepto 3K | B5: 60 | E5: 1 | F5: =E5*B5 -> 60 | I5: Version:
A6: Line card (line 2) | B6: 15 | E6: 0 | F6: =E6*B6 -> 0
A7: Network card (HedRing.net) | B7: 40 | E7: 0 | F7: 0 | I7: Number:
A8: NL-KLG | B8: 60 | E8: 0 | F8: 0
A10: Total: | F10: =SUM(F5:F9) -> 60
S13: Maximum load calculator
A15: Emergency lights | B15: Lepo | C15: Lataus/vikaledi | E15: Line 1 | G15: Line 2 | J15: Manual | S15: Neptolux- devices | W15: Line 1 | AA15: Line 2
C16: päällä | E16: Amount | F16: Current, mA | G16: Amount | H16: Current, mA | T16: I, [mA] | U16: NU | V16: P, [W] | W16: Amount | X16: NU | Y16: Power, W | Z16: Current, mA | AA16: Amount | AB16: NU | AC16: Power, W | AD16: Current, mA
A17: N68-C/ N68-O (0) FACTORY SETTING | B17: 7.8 | C17: 0.4 | E17: 0 | F17: =(B17*E17) -> 0 | G17: 0 | H17: =(B17*G17) -> 0 | J17: Using this calculator, one can determine: | S17: N68-C/N68-O 24h, Default power | T17: =B17 -> 7.8 | U17: 4.8 | V17: 0.04 | W17: =(E17-W18-W19-W20) -> 0 | X17: =(W17*U17) -> 0 | Y17: =(W17*0.25) -> 0 | Z17: . | AA17: =(G17-AA18-AA19-AA20) -> 0 | AB17: =(AA17*Y17) -> 0 | AC17: =(AA17*0.25) -> 0 | AD17: =(AA17*T17) -> 0
A18: N68-C/ N68-O (1) | B18: 11.04 | C18: 0.4 | E18: 0 | F18: =(B18*E18) -> 0 | G18: 0 | H18: 0 | J18: Nepto 3K- units current consumption | S18: N68-C/N68-O 12h, Default power | T18: =(T17+4.7) -> 12.5 | U18: =(U17+2) -> 6.8 | V18: 0.96 | W18: 0 | X18: =(W18*U18) -> 0 | Y18: 0 | Z18: =(W18*T18) -> 0 | AA18: 0 | AB18: =(AA18*Y18) -> 0 | AC18: 0 | AD18: =(AA18*T18) -> 0
A19: N68-C/ N68-O (2) | B19: 14.28 | C19: 0.4 | E19: 0 | F19: 0 | G19: 0 | H19: 0 | J19: Line load | S19: N68-C/N68-O 24h, Hi-Power | T19: =(T17+4.7) -> 12.5 | U19: =(U17+2) -> 6.8 | V19: 0.04 | W19: 0 | X19: 0 | Y19: =(W19*0.25) -> 0 | Z19: 0 | AA19: 0 | AB19: 0 | AC19: =(AA19*0.25) -> 0 | AD19: =(AA19*T19) -> 0
A20: N68-C/ N68-O (3) | B20: 17.52 | C20: 0.4 | E20: 0 | F20: 0 | G20: 0 | H20: 0 | J20: Lines maximum length | S20: N68-C/N68-O 12h, Hi-Power | T20: =(T17+21.7) -> 29.5 | U20: =(U17+13) -> 17.8 | V20: 0.96 | W20: 0 | X20: 0 | Y20: =(W20*0.25) -> 0 | Z20: 0 | AA20: 0 | AB20: 0 | AC20: =(AA20*0.25) -> 0 | AD20: 0
A21: N68-C/ N68-O (4) | B21: 24 | C21: 0.4 | E21: 0 | F21: 0 | G21: 0 | H21: 0 | J21: Central bettery | S21: N20, 24h charge time | T21: =B29 -> 12.7 | U21: 7.9 | V21: 0.25 | W21: =(E29-W22) -> 0 | X21: 0 | Y21: =(W21*0.25) -> 0 | Z21: 0 | AA21: =(G29-AA22) -> 0 | AB21: 0 | AC21: =(AA21*0.25) -> 0 | AD21: 0
A22: N68-C/ N68-O (5) | B22: 30.48 | C22: 0.4 | E22: 0 | F22: 0 | G22: 0 | H22: 0 | S22: N20, 12h charge time | T22: =(T21+4.7) -> 17.4 | U22: =(U21+2) -> 9.9 | V22: 0.25 | W22: 0 | X22: 0 | Y22: =(W22*0.25) -> 0 | Z22: 0 | AA22: 0 | AB22: 0 | AC22: =(AA22*0.25) -> 0 | AD22: 0
A23: N68-C/ N68-O (6) | B23: 36.312 | C23: 0.4 | E23: 0 | F23: 0 | G23: 0 | H23: 0 | J23: 1. Type the amount for central unit devices. | S23: N40, 24h charge time | T23: =B37 -> 20.4 | U23: 12.6 | V23: 0.53 | W23: =(E37-W24) -> 0 | X23: 0 | Y23: =(W23*0.53) -> 0 | Z23: 0 | AA23: =(G37-AA24) -> 0 | AB23: 0 | AC23: =(AA23*0.53) -> 0 | AD23: 0
A24: N68-C/ N68-O (7) ACTIVE STATE | B24: 36.312 | C24: 0.4 | E24: 0 | F24: 0 | G24: 0 | H24: 0 | J24: 2. Insert the amounts per line for different luminaires. Default brightness has been higlighted with a darker shade. | S24: N40, 12h charge time | T24: =(T23+4.7) -> 25.1 | U24: =(U23+2) -> 14.6 | V24: 0.53 | W24: 0 | X24: 0 | Y24: =(W24*0.53) -> 0 | Z24: 0 | AA24: 0 | AB24: 0 | AC24: =(AA24*0.53) -> 0 | AD24: 0
A25: N20 / N20-X (0) | B25: 6.1 | C25: 0.4 | E25: 0 | F25: 0 | G25: 0 | H25: 0 | J25: 3. The calculator will notify if tha maximum load or address number exceeds. | S25: N68-C-3/N68-O-3 24h, Default power | T25: =B41 -> 22 | U25: 13.6 | V25: 0.04 | W25: =(E41-W26-W27-W28) -> 0 | X25: 0 | Y25: =(W25*0.25) -> 0 | Z25: 0 | AA25: =(G41-AA26-AA27-AA28) -> 0 | AB25: 0 | AC25: =(AA25*0.25) -> 0 | AD25: 0
A26: N20 / N20-X (1) | B26: 7.333333333 | C26: 0.4 | E26: 0 | F26: 0 | G26: 0 | H26: 0 | J26: 4. Type the estimated maximum length of each line to the cells at row 148. (Longest distance from central unit to furthest address) | S26: N68-C-3/N68-O-3 12h, Default power | T26: =(T25+17.1) -> 39.1 | U26: =(U25+11) -> 24.6 | V26: 0.96 | W26: 0 | X26: 0 | Y26: 0 | Z26: 0 | AA26: 0 | AB26: 0 | AC26: 0 | AD26: 0
A27: N20 / N20-X (2) | B27: 8.566666667 | C27: 0.4 | E27: 0 | F27: 0 | G27: 0 | H27: 0 | S27: N68-C-3/N68-O-3 24h, Hi-Power | T27: =(T25+4.7) -> 26.7 | U27: =(U25+11) -> 24.6 | V27: 0.04 | W27: 0 | X27: 0 | Y27: 0 | Z27: 0 | AA27: 0 | AB27: 0 | AC27: 0 | AD27: 0
A28: N20 / N20-X (3) | B28: 9.8 | C28: 0.4 | E28: 0 | F28: 0 | G28: 0 | H28: 0 | J28: 5. The calculator uses the values typed in step 2 to determine weither the the load is not too high for the cable | S28: N68-C-3/N68-O-3 12h, Hi-Power | T28: =(T25+24.1) -> 46.1 | U28: =(U25+15) -> 28.6 | V28: 0.96 | W28: 0 | X28: 0 | Y28: 0 | Z28: 0 | AA28: 0 | AB28: 0 | AC28: 0 | AD28: 0
A29: N20 / N20-X (4) FACTORY SETTING | B29: 12.7 | C29: 0.4 | E29: 0 | F29: 0 | G29: 0 | H29: 0 | J29: 6. It's possible to use Hi-Power setting or fastcharge mode for the products. In that case the maximum charging load increases. | S29: N20-3, 24h charge time | T29: =B53 -> 20.6 | U29: 12.8 | V29: 0.25 | W29: =(E53-W30) -> 0 | X29: 0 | Y29: 0 | Z29: 0 | AA29: =(G53-AA30) -> 0 | AB29: 0 | AC29: 0 | AD29: 0
A30: N20 / N20-X (5) | B30: 15.35 | C30: 0.4 | E30: 0 | F30: 0 | G30: 0 | H30: 0 | S30: N20-3, 12h charge time | T30: =(T29+17.1) -> 37.7 | U30: =(U29+11) -> 23.8 | V30: 0.25 | W30: 0 | X30: 0 | Y30: 0 | Z30: 0 | AA30: 0 | AB30: 0 | AC30: 0 | AD30: 0
A31: N20 / N20-X (6) | B31: 18.1 | C31: 0.4 | E31: 0 | F31: 0 | G31: 0 | H31: 0 | J31: Use the calculator on the right to determine the maximum load during charging. The calculator uses the inserted values in the cable lenght calculation. (active cells have been highlighted with darker orange) | S31: N40-3, 24h charge time | T31: =B61 -> 28.10666667 | U31: 19.3 | V31: 0.53 | W31: =(E61-W32) -> 0 | X31: 0 | Y31: 0 | Z31: 0 | AA31: =(G53-AA32) -> 0 | AB31: 0 | AC31: 0 | AD31: 0
A32: N20 / N20-X (7) | B32: 12.7 | C32: 0.4 | E32: 0 | F32: 0 | G32: 0 | H32: 0 | S32: N40-3, 12h charge time | T32: =(T31+17.1) -> 45.20666667 | U32: =(U31+11) -> 30.3 | V32: 0.53 | W32: 0 | X32: 0 | Y32: 0 | Z32: 0 | AA32: 0 | AB32: 0 | AC32: 0 | AD32: 0
A33: N40 / N40-X (0) | B33: 6.1 | C33: 0.4 | E33: 0 | F33: 0 | G33: 0 | H33: 0 | S33: N55 24h, Default power | T33: =B81 -> 6.1 | U33: 3.8 | V33: 0.04 | W33: =(E81-W34-W35-W36) -> 0 | X33: 0 | Y33: 0 | Z33: 0 | AA33: =(G81-AA34-AA35-AA36) -> 0 | AB33: 0 | AC33: 0 | AD33: 0
A34: N40 / N40-X (1) | B34: 8.388 | C34: 0.4 | E34: 0 | F34: 0 | G34: 0 | H34: 0 | J34: Central battery | S34: N55 12h, Default power | T34: 9.7 | U34: =(U33+2) -> 5.8 | V34: 0.96 | W34: 0 | X34: 0 | Y34: 0 | Z34: 0 | AA34: 0 | AB34: 0 | AC34: 0 | AD34: 0
A35: N40 / N40-X (2) | B35: 11.82 | C35: 0.4 | E35: 0 | F35: 0 | G35: 0 | H35: 0 | J35: 1. In central battery systems, one must use the "ACTIVE STATE"- values for calculating the cable load. | S35: N55 24h, Hi-Power | T35: 13.8 | U35: =(U33+2) -> 5.8 | V35: 0.04 | W35: 0 | X35: 0 | Y35: 0 | Z35: 0 | AA35: 0 | AB35: 0 | AC35: 0 | AD35: 0
A36: N40 / N40-X (3) | B36: 15.252 | C36: 0.4 | E36: 0 | F36: 0 | G36: 0 | H36: 0 | J36: 2. Type in the amounts for emergency lights to "ACTIVE STATE" and exit lights to "FACTORY SETTING" | S36: N55 12h, Hi-Power | T36: 32 | U36: =(U33+13) -> 16.8 | V36: 0.96 | W36: 0 | X36: 0 | Y36: 0 | Z36: 0 | AA36: 0 | AB36: 0 | AC36: 0 | AD36: 0
A37: N40 / N40-X (4) FACTORY SETTING | B37: 20.4 | C37: 0.4 | E37: 0 | F37: 0 | G37: 0 | H37: 0 | J37: 3. For central battery system, the actual standby time must be determined | S37: N55-3 24h, Default power | T37: =B89 -> 9.7 | U37: 6 | V37: 0.04 | W37: =(E89-W38-W39-W40) -> 0 | X37: 0 | Y37: 0 | Z37: 0 | AA37: =(G89-AA38-AA39-AA40) -> 0 | AB37: 0 | AC37: 0 | AD37: 0
A38: N40 / N40-X (5) | B38: 23.26 | C38: 0.4 | E38: 0 | F38: 0 | G38: 0 | H38: 0 | J38: 4. Insert the values for "Standby time" and "Chosen battery capacity" | S38: N55-3 12h, Default power | T38: 28.3 | U38: =(U37+11) -> 17 | V38: 0.96 | W38: 0 | X38: 0 | Y38: 0 | Z38: 0 | AA38: 0 | AB38: 0 | AC38: 0 | AD38: 0
A39: N40 / N40-X (6) | B39: 26.12 | C39: 0.4 | E39: 0 | F39: 0 | G39: 0 | H39: 0 | J39: 5. The calculator points out if the battery capacity is good enough. | S39: N55-3 24h, Hi-Power | T39: 13.8 | U39: =(U37+11) -> 17 | V39: 0.04 | W39: 0 | X39: 0 | Y39: 0 | Z39: 0 | AA39: 0 | AB39: 0 | AC39: 0 | AD39: 0
A40: N40 / N40-X (7) | B40: 20.4 | C40: 0.4 | E40: 0 | F40: 0 | G40: 0 | H40: 0 | S40: N55-3 12h, Hi-Power | T40: 32 | U40: =(U37+15) -> 21 | V40: 0.96 | W40: 0 | X40: 0 | Y40: 0 | Z40: 0 | AA40: 0 | AB40: 0 | AC40: 0 | AD40: 0
A41: N68-C3/ N68-O3 (0) FACTORY SETTING | B41: 22 | C41: 0.4 | E41: 0 | F41: 0 | G41: 0 | H41: 0 | S41: N89-C/N89-O 24h, Default power | T41: =B97 -> 16.5 | U41: 10.2 | V41: 0.08 | W41: =(E97-W42) -> 0 | X41: 0 | Y41: 0 | Z41: 0 | AA41: =(G97-AA42) -> 0 | AB41: 0 | AC41: 0 | AD41: 0
A42: N68-C3/ N68-O3 (1) | B42: 25.24 | C42: 0.4 | E42: 0 | F42: 0 | G42: 0 | H42: 0 | S42: N89-C/N89-O 12h, Default power | T42: =(T41+11) -> 27.5 | U42: =(U41+6.5) -> 16.7 | V42: 6.82 | W42: 0 | X42: 0 | Y42: 0 | Z42: 0 | AA42: 0 | AB42: 0 | AC42: 0 | AD42: 0
A43: N68-C3/ N68-O3 (2) | B43: 28.48 | C43: 0.4 | E43: 0 | F43: 0 | G43: 0 | H43: 0 | S43: N89-C-3/N89-O-3 24h, Default power | T43: 44.5 | U43: 27.6 | V43: 0.08 | W43: =(E105-W44) -> 0 | X43: 0 | Y43: 0 | Z43: 0 | AA43: =(G105-AA44) -> 0 | AB43: 0 | AC43: 0 | AD43: 0
A44: N68-C3/ N68-O3 (3) | B44: 31.72 | C44: 0.4 | E44: 0 | F44: 0 | G44: 0 | H44: 0 | S44: N89-C-3/N89-O-3 12h, Default power | T44: =(T43+36) -> 80.5 | U44: =(U43+22.5) -> 50.1 | V44: 6.82 | W44: 0 | X44: 0 | Y44: 0 | Z44: 0 | AA44: 0 | AB44: 0 | AC44: 0 | AD44: 0
A45: N68-C3/ N68-O3 (4) | B45: 38.2 | C45: 0.4 | E45: 0 | F45: 0 | G45: 0 | H45: 0 | S45: N40C, 24h charge time | T45: =B117 -> 50.5 | U45: 31.3 | V45: 0.08 | W45: =(E117-W46) -> 0 | X45: 0 | Y45: 0 | Z45: 0 | AA45: =(G117-AA46) -> 0 | AB45: 0 | AC45: 0 | AD45: 0
A46: N68-C3/ N68-O3 (5) | B46: 44.68 | C46: 0.4 | E46: 0 | F46: 0 | G46: 0 | H46: 0 | S46: N40C, 12h charge time | T46: =(T45+11) -> 61.5 | U46: =(U45+6.5) -> 37.8 | V46: 6.82 | W46: 0 | X46: 0 | Y46: 0 | Z46: 0 | AA46: 0 | AB46: 0 | AC46: 0 | AD46: 0
A47: N68-C3/ N68-O3 (6) | B47: 50.512 | C47: 0.4 | E47: 0 | F47: 0 | G47: 0 | H47: 0 | S47: N40C-3, 24h charge time | T47: 78.5 | U47: =(31.3+6.8) -> 38.1 | V47: 0.08 | W47: =(E125-W48) -> 0 | X47: 0 | Y47: 0 | Z47: 0 | AA47: =(G125-AA48) -> 1 | AB47: 0 | AC47: 0.25 | AD47: 78.5
A48: N68-C3/ N68-O3 (7) ACTIVE STATE | B48: 50.512 | C48: 0.4 | E48: 0 | F48: 0 | G48: 0 | H48: 0 | S48: N40C-3, 12h charge time | T48: =(78.5+36) -> 114.5 | U48: =(48.7+22.5) -> 71.2 | V48: 6.82 | W48: 0 | X48: 0 | Y48: 0 | Z48: 0 | AA48: 0 | AB48: 0 | AC48: 0 | AD48: 0
A49: N20-3 / N20-X3 (0) | B49: 13.8 | C49: 0.4 | E49: 0 | F49: 0 | G49: 0 | H49: 0 | S49: N70, 24h charge time | T49: =B69 -> 50.5 | U49: 31.3 | V49: 0.08 | W49: =(E69-W50) -> 0 | X49: 0 | Y49: 0 | Z49: =(W49*T49) -> 0 | AA49: =(G69-AA50) -> 0 | AB49: 0 | AC49: 0 | AD49: 0
A50: N20-3 / N20-X3 (1) | B50: 15 | C50: 0.4 | E50: 0 | F50: 0 | G50: 0 | H50: 0 | S50: N70, 12h charge time | T50: =(50.5+11) -> 61.5 | U50: =(31.3+6.8) -> 38.1 | V50: 0.92 | W50: 0 | X50: 0 | Y50: 0 | Z50: =(W50*T50) -> 0 | AA50: 0 | AB50: 0 | AC50: 0 | AD50: 0
A51: N20-3 / N20-X3 (2) | B51: 16.3 | C51: 0.4 | E51: 0 | F51: 0 | G51: 0 | H51: 0 | S51: N70-3, 24h charge time | T51: =B77 -> 78.5 | U51: 48.7 | V51: 0.08 | W51: =(E77-W52) -> 0 | X51: 0 | Y51: 0 | Z51: =(W51*T51) -> 0 | AA51: =(G77-AA52) -> 0 | AB51: 0 | AC51: 0 | AD51: 0
A52: N20-3 / N20-X3 (3) | B52: 17.5 | C52: 0.4 | E52: 0 | F52: 0 | G52: 0 | H52: 0 | S52: N70-3, 12h charge time | T52: =(78.5+36) -> 114.5 | U52: =(48.7+22.5) -> 71.2 | V52: 0.92 | W52: 0 | X52: 0 | Y52: 0 | Z52: =(W52*T52) -> 0 | AA52: 0 | AB52: 0 | AC52: 0 | AD52: 0
A53: N20-3 / N20-X3 (4) FACTORY SETTING | B53: 20.6 | C53: 0.4 | E53: 0 | F53: 0 | G53: 0 | H53: 0 | S53: N-IO | T53: =B129 -> 3.2 | U53: 2 | V53: 0.1 | W53: =(W5) -> 0 | X53: 0 | Y53: 0 | Z53: 0 | AA53: =(AA5) -> 0 | AB53: 0 | AC53: 0 | AD53: =(AA53*T53) -> 0
A54: N20-3 / N20-X3 (5) | B54: 23.1 | C54: 0.4 | E54: 0 | F54: 0 | G54: 0 | H54: 0 | W54: Max. 127 | Z54: Max. 2000 | AA54: Max. 127 | AD54: Max. 2000
A55: N20-3 / N20-X3 (6) | B55: 26.1 | C55: 0.4 | E55: 0 | F55: 0 | G55: 0 | H55: 0 | S55: Total: | W55: =SUM(W17:W53) -> 0 | X55: =SUM(X17:X53) -> 0 | Y55: =SUM(Y17:Y53) -> 0 | Z55: =SUM(Z17:Z54) -> 0 | AA55: =SUM(AA17:AA53) -> 1 | AB55: =SUM(AB17:AB53) -> 0 | AC55: =SUM(AC17:AC53) -> 0.25 | AD55: =SUM(AD17:AD53) -> 78.5
A56: N20-3 / N20-X3 (7) | B56: 20.6 | C56: 0.4 | E56: 0 | F56: 0 | G56: 0 | H56: 0 | W56: =(W55/127) -> 0 | Z56: =(Z55/2000) -> 0 | AA56: =(AA55/127) -> 0.007874015748 | AD56: =(AD55/2000) -> 0.03925
A57: N40-3 / N40-X3 (0) | B57: 13.80666667 | C57: 0.4 | E57: 0 | F57: 0 | G57: 0 | H57: 0
A58: N40-3 / N40-X3 (1) | B58: 16.09466667 | C58: 0.4 | E58: 0 | F58: 0 | G58: 0 | H58: 0
A59: N40-3 / N40-X3 (2) | B59: 19.52666667 | C59: 0.4 | E59: 0 | F59: 0 | G59: 0 | H59: 0
A60: N40-3 / N40-X3 (3) | B60: 22.95866667 | C60: 0.4 | E60: 0 | F60: 0 | G60: 0 | H60: 0
A61: N40-3 / N40-X3 (4) FACTORY SETTING | B61: 28.10666667 | C61: 0.4 | E61: 0 | F61: 0 | G61: 0 | H61: 0
A62: N40-3 / N40-X3 (5) | B62: 30.96666667 | C62: 0.4 | E62: 0 | F62: 0 | G62: 0 | H62: 0
A63: N40-3 / N40-X3 (6) | B63: 33.82666667 | C63: 0.4 | E63: 0 | F63: 0 | G63: 0 | H63: 0
A64: N40-3 / N40-X3 (7) | B64: 28.10666667 | C64: 0.4 | E64: 0 | F64: 0 | G64: 0 | H64: 0
A65: N70 / N70-X (0) | B65: 16.5 | C65: 0.4 | E65: 0 | F65: 0 | G65: 0 | H65: 0
A66: N70 / N70-X (1) | B66: 23.3 | C66: 0.4 | E66: 0 | F66: 0 | G66: 0 | H66: 0
A67: N70 / N70-X (2) | B67: 30.1 | C67: 0.4 | E67: 0 | F67: 0 | G67: 0 | H67: 0
A68: N70 / N70-X (3) | B68: 36.9 | C68: 0.4 | E68: 0 | F68: 0 | G68: 0 | H68: 0
A69: N70 / N70-X (4) FACTORY SETTING | B69: 50.5 | C69: 0.4 | E69: 0 | F69: 0 | G69: 0 | H69: 0
A70: N70 / N70-X (5) | B70: 57.3 | C70: 0.4 | E70: 0 | F70: 0 | G70: 0 | H70: 0
A71: N70 / N70-X (6) | B71: 70.9 | C71: 0.4 | E71: 0 | F71: 0 | G71: 0 | H71: 0
A72: N70 / N70-X (7) | B72: 43.7 | C72: 0.4 | E72: 0 | F72: 0 | G72: 0 | H72: 0
A73: N70-3 / N70-X-3 (0) | B73: 44.5 | C73: 0.4 | E73: 0 | F73: 0 | G73: 0 | H73: 0
A74: N70-3 / N70-X-3 (1) | B74: 51.3 | C74: 0.4 | E74: 0 | F74: 0 | G74: 0 | H74: 0
A75: N70-3 / N70-X-3 (2) | B75: 58.1 | C75: 0.4 | E75: 0 | F75: 0 | G75: 0 | H75: 0
A76: N70-3 / N70-X-3 (3) | B76: 64.9 | C76: 0.4 | E76: 0 | F76: 0 | G76: 0 | H76: 0
A77: N70-3 / N70-X-3 (4) FACTORY SETTING | B77: 78.5 | C77: 0.4 | E77: 0 | F77: 0 | G77: 0 | H77: 0
A78: N70-3 / N70-X-3 (5) | B78: 85.3 | C78: 0.4 | E78: 0 | F78: 0 | G78: 0 | H78: 0
A79: N70-3 / N70-X-3 (6) | B79: 98.9 | C79: 0.4 | E79: 0 | F79: 0 | G79: 0 | H79: 0
A80: N70-3 / N70-X-3 (7) | B80: 71.7 | C80: 0.4 | E80: 0 | F80: 0 | G80: 0 | H80: 0
A81: N55 (0) FACTORY SETTING | B81: 6.1 | C81: 0.4 | E81: 0 | F81: 0 | G81: 0 | H81: =(B81*G81) -> 0
A82: N55 (1) | B82: 9.5 | C82: 0.4 | E82: 0 | F82: 0 | G82: 0 | H82: 0
A83: N55 (2) | B83: 12.9 | C83: 0.4 | E83: 0 | F83: 0 | G83: 0 | H83: 0
A84: N55 (3) | B84: 16.2 | C84: 0.4 | E84: 0 | F84: 0 | G84: 0 | H84: 0
A85: N55 (4) | B85: 23 | C85: 0.4 | E85: 0 | F85: 0 | G85: 0 | H85: 0
A86: N55 (5) | B86: 29.8 | C86: 0.4 | E86: 0 | F86: 0 | G86: 0 | H86: 0
A87: N55 (6) | B87: 35.8 | C87: 0.4 | E87: 0 | F87: 0 | G87: 0 | H87: 0
A88: N55 (7) ACTIVE STATE | B88: 35.8 | C88: 0.4 | E88: 0 | F88: 0 | G88: 0 | H88: 0
A89: N55-3 (0) FACTORY SETTING | B89: 9.7 | C89: 0.4 | E89: 0 | F89: 0 | G89: 0 | H89: 0
A90: N55-3 (1) | B90: 13.1 | C90: 0.4 | E90: 0 | F90: 0 | G90: 0 | H90: 0
A91: N55-3 (2) | B91: 16.5 | C91: 0.4 | E91: 0 | F91: 0 | G91: 0 | H91: 0
A92: N55-3 (3) | B92: 19.8 | C92: 0.4 | E92: 0 | F92: 0 | G92: 0 | H92: 0
A93: N55-3 (4) | B93: 26.6 | C93: 0.4 | E93: 0 | F93: 0 | G93: 0 | H93: 0
A94: N55-3 (5) | B94: 33.4 | C94: 0.4 | E94: 0 | F94: 0 | G94: 0 | H94: 0
A95: N55-3 (6) | B95: 39.5 | C95: 0.4 | E95: 0 | F95: 0 | G95: 0 | H95: 0
A96: N55-3 (7) ACTIVE STATE | B96: 39.5 | C96: 0.4 | E96: 0 | F96: 0 | G96: 0 | H96: 0
A97: N89-C/N89-O (0) FACTORY SETTING | B97: 16.5 | C97: 0.4 | E97: 0 | F97: 0 | G97: 0 | H97: 0
A98: N89-C/N89-O (1) | B98: 30.1 | C98: 0.4 | E98: 0 | F98: =(B98*E98) -> 0 | G98: 0 | H98: 0
A99: N89-C/N89-O (2) | B99: 36.9 | C99: 0.4 | E99: 0 | F99: 0 | G99: 0 | H99: 0
A100: N89-C/N89-O (3) | B100: 43.7 | C100: 0.4 | E100: 0 | F100: 0 | G100: 0 | H100: 0
A101: N89-C/N89-O (4) | B101: 50.5 | C101: 0.4 | E101: 0 | F101: 0 | G101: 0 | H101: 0
A102: N89-C/N89-O (5) | B102: 64.1 | C102: 0.4 | E102: 0 | F102: 0 | G102: 0 | H102: 0
A103: N89-C/N89-O (6) ACTIVE STATE | B103: 152.5 | C103: 0.4 | E103: 0 | F103: 0 | G103: 0 | H103: 0
A104: N89-C/N89-O (7) | B104: 234.1 | C104: 0.4 | E104: 0 | F104: 0 | G104: 0 | H104: 0
A105: N89-C3/N89-O3 (0) FACTORY SETTING | B105: 44.5 | C105: 0.4 | E105: 0 | F105: 0 | G105: 0 | H105: 0
A106: N89-C3/N89-O3 (1) | B106: 58.1 | C106: 0.4 | E106: 0 | F106: 0 | G106: 0 | H106: 0
A107: N89-C3/N89-O3 (2) | B107: 64.9 | C107: 0.4 | E107: 0 | F107: 0 | G107: 0 | H107: 0
A108: N89-C3/N89-O3 (3) | B108: 71.7 | C108: 0.4 | E108: 0 | F108: 0 | G108: 0 | H108: 0
A109: N89-C3/N89-O3 (4) | B109: 78.5 | C109: 0.4 | E109: 0 | F109: 0 | G109: 0 | H109: 0
A110: N89-C3/N89-O3 (5) | B110: 92.1 | C110: 0.4 | E110: 0 | F110: 0 | G110: 0 | H110: 0
A111: N89-C3/N89-O3 (6) ACTIVE STATE | B111: 180.5 | C111: 0.4 | E111: 0 | F111: 0 | G111: 0 | H111: 0
A112: N89-C3/N89-O3 (7) | B112: 262.1 | C112: 0.4 | E112: 0 | F112: 0 | G112: 0 | H112: 0
A113: N40C/N40C (0) | B113: 16.5 | C113: 0.4 | E113: 0 | F113: 0 | G113: 0 | H113: 0
A114: N40C/N40C (1) | B114: 30.1 | C114: 0.4 | E114: 0 | F114: 0 | G114: 0 | H114: 0
A115: N40C/N40C (2) | B115: 36.9 | C115: 0.4 | E115: 0 | F115: 0 | G115: 0 | H115: 0
A116: N40C/N40C (3) | B116: 43.7 | C116: 0.4 | E116: 0 | F116: 0 | G116: 0 | H116: 0
A117: N40C/N40C (4) FACTORY SETTING | B117: 50.5 | C117: 0.4 | E117: 0 | F117: 0 | G117: 0 | H117: 0
A118: N40C/N40C (5) | B118: 64.1 | C118: 0.4 | E118: 0 | F118: 0 | G118: 0 | H118: 0
A119: N40C/N40C (6) | B119: 70.9 | C119: 0.4 | E119: 0 | F119: 0 | G119: 0 | H119: 0
A120: N40C/N40C (7) ACTIVE STATE | B120: 234.1 | C120: 0.4 | E120: 0 | F120: 0 | G120: 0 | H120: 0
A121: N40C-3/N40C-3 (0) | B121: 44.5 | C121: 0.4 | E121: 0 | F121: 0 | G121: 0 | H121: 0
A122: N40C-3/N40C-3 (1) | B122: 58.1 | C122: 0.4 | E122: 0 | F122: 0 | G122: 0 | H122: 0
A123: N40C-3/N40C-3 (2) | B123: 64.9 | C123: 0.4 | E123: 0 | F123: 0 | G123: 0 | H123: 0
A124: N40C-3/N40C-3 (3) | B124: 71.7 | C124: 0.4 | E124: 0 | F124: 0 | G124: 0 | H124: 0
A125: N40C-3/N40C-3 (4) FACTORY SETTING | B125: 78.5 | C125: 0.4 | E125: 0 | F125: 0 | G125: 1 | H125: 78.5
A126: N40C-3/N40C-3 (5) | B126: 92.1 | C126: 0.4 | E126: 0 | F126: 0 | G126: 0 | H126: 0
A127: N40C-3/N40C-3 (6) | B127: 98.9 | C127: 0.4 | E127: 0 | F127: 0 | G127: 0 | H127: 0
A128: N40C-3/N40C-3 (7) ACTIVE STATE | B128: 262.1 | C128: 0.4 | E128: 0 | F128: 0 | G128: 0 | H128: 0
A129: N-IO | B129: 3.2 | E129: 0 | F129: 0 | G129: 0 | H129: 0
E131: Amount | F131: Amount | G131: Amount | H131: Amount
A132: Total: | E132: =SUM(E17:E129) -> 0 | F132: =SUM(F17:F129) -> 0 | G132: =SUM(G17:G129) -> 1 | H132: =SUM(H17:H129) -> 78.5
E133: =IF(E132<128,"Ok","Fault") -> Ok | F133: =IF(F132<2000,"Ok","Fault") -> Ok | G133: =IF(G132<128,"Ok","Fault") -> Ok | H133: =IF(H132<2000,"Ok","Fault") -> Ok | J133: Central battery calculation
J134: Needed battery capacity | M134: =((F143*M136*2)/1000) -> 0.277 | N134: Ah
A135: Consumption | E135: Amount | F135: Current | H135: Max. Load
E136: pcs | F136: (mA) | H136: Charge (mA) | J136: Standby time | M136: 1 | N136: hours
A137: Central unit: | F137: =F10 -> 60 | H137: -
A138: Line 1 | E138: =E132 -> 0 | F138: =(F132) -> 0 | H138: =(Z55) -> 0
A139: Line 2 | E139: =G132 -> 1 | F139: =H132 -> 78.5 | H139: =(AD55) -> 78.5 | J139: Chosen battery capacity | L139: =IF(M139>M134,"OK","Ei voida ladata") -> OK | M139: 14 | N139: Ah
J141: Actual standby time | M141: =(M139*1000)/(F143*2) -> 50.54151625 | N141: h
E142: kpl | F142: (mA)
A143: Yhteensä: | E143: =SUM(E138:E142) -> 1 | F143: =SUM(F137:F142) -> 138.5
E147: Line 1 | F147: Line 2
A148: Line lenght [m] (max. 1000m) | E148: 1 | F148: 1
E149: =IF(E148<=1000,"OK","TOO LONG") -> OK | F149: =IF(F148<=1000,"OK","TOO LONG") -> OK
A150: Max current [mA] | E150: =IF(F138<H138,H138,F138) -> 0 | F150: =IF(F139<H139,H139,F139) -> 78.5
C151: 0.7 | D151: yF
C152: 0.7 | D152: mH
A155: Osoitteet silmukassa tasavälein
A156: KLMA 2x0.8 74 ohm / km | E156: =IF(LOOKUP(E148,#REF!,#REF!)>E150,"OK","EI OK") ->  | F156: =IF(LOOKUP(F148,#REF!,#REF!)>F150,"OK","EI OK") ->  | G156: =IF(LOOKUP(G148,#REF!,#REF!)>G150,"OK","EI OK") ->  | H156: =IF(LOOKUP(H148,#REF!,#REF!)>H150,"OK","EI OK") -> 
A157: KLMA 4x0.8 37 ohm / km | E157: =IF(LOOKUP(E148,#REF!,#REF!)>E150,"OK","EI OK") ->  | F157: =IF(LOOKUP(F148,#REF!,#REF!)>F150,"OK","EI OK") ->  | G157: =IF(LOOKUP(G148,#REF!,#REF!)>G150,"OK","EI OK") ->  | H157: =IF(LOOKUP(H148,#REF!,#REF!)>H150,"OK","EI OK") -> 
A158: KLMA 2kpl 4x0.8 18,5 ohm / km | E158: =IF(LOOKUP(E148,#REF!,#REF!)>E150,"OK","EI OK") ->  | F158: =IF(LOOKUP(F148,#REF!,#REF!)>F150,"OK","EI OK") ->  | G158: =IF(LOOKUP(G148,#REF!,#REF!)>G150,"OK","EI OK") ->  | H158: =IF(LOOKUP(H148,#REF!,#REF!)>H150,"OK","EI OK") -> 
A160: Addresses with even distances among the line
A161: KLMA 2x0.8 74 ohm / km | E161: =IF(AM225>=25,"OK","TOO LONG") ->  | F161: =IF(BE225>=25,"OK","TOO LONG") -> OK
A162: KLMA 4x0.8 37 ohm / km | E162: =IF(AM263>=25,"OK","TOO LONG") ->  | F162: =IF(BE263>=25,"OK","TOO LONG") -> OK
A163: ELQYB 2x1,0 50 ohm / km | E163: =IF(AM301>=25,"OK","TOO LONG") ->  | F163: =IF(BE301>=25,"OK","TOO LONG") -> OK
A164: ELQYB 4x1,0 25 ohm / km | E164: =IF(AM339>=25,"OK","TOO LONG") ->  | F164: =IF(BE339>=25,"OK","TOO LONG") -> OK
A165: KLM 2x1,0 50 ohm / km | E165: =IF(AM301>=25,"OK","TOO LONG") ->  | F165: =IF(BE301>=25,"OK","TOO LONG") -> OK
A166: KLM 4x1,0 25 ohm / km | E166: =IF(AM339>=25,"OK","TOO LONG") ->  | F166: =IF(BE339>=25,"OK","TOO LONG") -> OK
A167: Osoitteet silmukan päässä | E167: =IF(AM342>=25,"OK","TOO LONG") -> TOO LONG | F167: =IF(BE342>=25,"OK","TOO LONG") -> TOO LONG
A168: KLMA 2x0.8 74 ohm / km | E168: TOO LONG | F168: TOO LONG | G168: =IF(LOOKUP(G148,#REF!,#REF!)>G150,"OK","EI OK") ->  | H168: =IF(LOOKUP(H148,#REF!,#REF!)>H150,"OK","EI OK") -> 
A169: KLMA 4x0.8 37 ohm / km | E169: TOO LONG | F169: TOO LONG | G169: =IF(LOOKUP(G148,#REF!,#REF!)>G150,"OK","EI OK") ->  | H169: =IF(LOOKUP(H148,#REF!,#REF!)>H150,"OK","EI OK") -> 
A170: KLMA 2kpl 4x0.8 18,5 ohm / km | E170: TOO LONG | F170: TOO LONG | G170: =IF(LOOKUP(G148,#REF!,#REF!)>G150,"OK","EI OK") ->  | H170: =IF(LOOKUP(H148,#REF!,#REF!)>H150,"OK","EI OK") -> 
A172: Osoitteet linjan päässä
A173: KLMA 2x0.8 74 ohm / km | E173: =IF(G227<=15,"OK","TOO LONG") -> OK | F173: =IF(H227<=15,"OK","TOO LONG") -> OK
A174: KLMA 4x0.8 37 ohm / km | E174: =IF(G228<=15,"OK","TOO LONG") -> OK | F174: OK
A175: ELQYB 2x1,0 50 ohm / km | E175: OK | F175: OK
A176: ELQYB 4x1,0 25 ohm / km | E176: OK | F176: OK
A177: KLM 2x1,0 50 ohm / km | E177: =IF(G229<=15,"OK","TOO LONG") -> OK | F177: =IF(H229<=15,"OK","TOO LONG") -> OK
A178: KLM 4x1,0 25 ohm / km | E178: =IF(G230<=15,"OK","TOO LONG") -> OK | F178: =IF(H230<=15,"OK","TOO LONG") -> OK
A182: Loop cabling equal distance
E183: jännite 25V-40V | F183: N89 28V-40V
E184: KLM sama, kuin ELQYB | G184: ELQYB 4x1.0 25 ohm/km | I184: ELQYB 2x1.0 50 ohms/km | K184: KLMA 4x0.8 37 ohm/km | M184: KLMA 2x0.8 74 ohm/km | O184: [m] | Q184: metrit
G185: I, [mA] | H185: I, [mA] | I185: I, [mA] | J185: I, [mA] | K185: I, [mA] | L185: I, [mA] | M185: I, [mA] | N185: I, [mA]
G186: =((15/(2*25*Q186*0.001))*1000) -> 6000 | H186: =((15/(2*25*P186*0.001))*1000) -> 300 | I186: =((15/(2*50*Q186*0.001))*1000) -> 3000 | J186: =((15/(2*50*P186*0.001))*1000) -> 150 | K186: =((15/(2*37*Q186*0.001))*1000) -> 4054.054054 | L186: =((15/(2*37*P186*0.001))*1000) -> 202.7027027 | M186: =((15/(2*74*Q186*0.001))*1000) -> 2027.027027 | N186: =((15/(2*74*P186*0.001))*1000) -> 101.3513514 | O186: 0 | P186: 1000 | Q186: 50
G187: 3000 | H187: =((15/(2*25*P187*0.001))*1000) -> 333.3333333 | I187: 1500 | J187: =((15/(2*50*P187*0.001))*1000) -> 166.6666667 | K187: 2027.027027 | L187: =((15/(2*37*P187*0.001))*1000) -> 225.2252252 | M187: 1013.513514 | N187: =((15/(2*74*P187*0.001))*1000) -> 112.6126126 | O187: 280 | P187: 900 | Q187: 100
G188: 1500 | H188: 375 | I188: 750 | J188: 187.5 | K188: 1013.513514 | L188: 253.3783784 | M188: 506.7567568 | N188: 126.6891892 | O188: 500 | P188: 800 | Q188: 200
G189: 1000 | H189: 428.5714286 | I189: 500 | J189: 214.2857143 | K189: 675.6756757 | L189: 289.5752896 | M189: 337.8378378 | N189: 144.7876448 | O189: 1000 | P189: 700 | Q189: 300
G190: 750 | H190: 500 | I190: 375 | J190: 250 | K190: 506.7567568 | L190: 337.8378378 | M190: 253.3783784 | N190: 168.9189189 | O190: 1500 | P190: 600 | Q190: 400
G191: 600 | H191: 600 | I191: 300 | J191: 300 | K191: 405.4054054 | L191: 405.4054054 | M191: 202.7027027 | N191: 202.7027027 | O191: 2000 | P191: 500 | Q191: 500
G192: 500 | H192: 750 | I192: 250 | J192: 375 | K192: 337.8378378 | L192: 506.7567568 | M192: 168.9189189 | N192: 253.3783784 | O192: 2001 | P192: 400 | Q192: 600
G193: 428.5714286 | H193: 1000 | I193: 214.2857143 | J193: 500 | K193: 289.5752896 | L193: 675.6756757 | M193: 144.7876448 | N193: 337.8378378 | P193: 300 | Q193: 700
G194: 375 | H194: 1500 | I194: 187.5 | J194: 750 | K194: 253.3783784 | L194: 1013.513514 | M194: 126.6891892 | N194: 506.7567568 | P194: 200 | Q194: 800
G195: 333.3333333 | H195: 3000 | I195: 166.6666667 | J195: 1500 | K195: 225.2252252 | L195: 2027.027027 | M195: 112.6126126 | N195: 1013.513514 | P195: 100 | Q195: 900 | X195: Kaapelin ominaisresistanssi | Z195: 74 | AA195: ohm/km | AP195: Kaapelin ominaisresistanssi | AR195: 74 | AS195: ohm/km
G196: =((15/(2*25*Q196*0.001))*1000) -> 300 | H196: 6000 | I196: =((15/(2*50*Q196*0.001))*1000) -> 150 | J196: 3000 | K196: =((15/(2*37*Q196*0.001))*1000) -> 202.7027027 | L196: 4054.054054 | M196: =((15/(2*74*Q196*0.001))*1000) -> 101.3513514 | N196: 2027.027027 | P196: 50 | Q196: 1000 | X196: Kaapelivastus/silmukka | Z196: =((Z195*Z197)/1000) -> 0.074 | AA196: ohm | AP196: Kaapelivastus/silmukka | AR196: =((AR195*AR197)/1000) -> 0.074 | AS196: ohm
A197: Loop cabling worst case | X197: Kaapelin pituus | Z197: =E148 -> 1 | AA197: m | AP197: Kaapelin pituus | AR197: =F148 -> 1 | AS197: m
X198: Kuormitus | Z198: =(E150/1000) -> 0 | AA198: A | AP198: Kuormitus | AR198: =(F150/1000) -> 0.0785 | AS198: A
G199: ELQYB 4x1.0 25 ohm/km | I199: ELQYB 2x1.0 50 ohms/km | K199: KLMA 4x0.8 37 ohm/km | M199: KLMA 2x0.8 74 ohm/km | O199: [m]
G200: I, [mA] | H200: I, [mA] | I200: I, [mA] | J200: I, [mA] | K200: I, [mA] | L200: I, [mA] | M200: I, [mA]
G201: 1230 | H201: 3000 | I201: 635 | J201: 3000 | K201: 835 | L201: 3000 | M201: 415 | N201: 3000 | O201: 1000 | P201: 0 | W201: R1 | X201: =(Z196/10/2) -> 0.0037 | AO201: R1 | AP201: =(AR196/10/2) -> 0.0037
G202: 1370 | H202: 3000 | I202: 680 | J202: 3000 | K202: 925 | L202: 3000 | M202: 460 | N202: 3000 | O202: 900 | P202: 100 | V202: 1 | W202: R2 | X202: =(31/(Z198/10)) ->  | Z202: =(X201+X202+X203) ->  | AA202: =(-X202) ->  | AB202: 0 | AC202: 0 | AD202: 0 | AE202: 0 | AF202: 0 | AG202: 0 | AH202: 0 | AI202: 0 | AK202: 40 | AO202: R2 | AP202: =(31/(AR198/10)) -> 3949.044586 | AR202: =(AP201+AP202+AP203) -> 3949.051986 | AS202: =(-AP202) -> -3949.044586 | AT202: 0 | AU202: 0 | AV202: 0 | AW202: 0 | AX202: 0 | AY202: 0 | AZ202: 0 | BA202: 0 | BC202: 40
G203: 1540 | H203: 3000 | I203: 770 | J203: 3000 | K203: 1040 | L203: 3000 | M203: 520 | N203: 2000 | O203: 800 | P203: 200 | W203: R3 | X203: =(Z196/10/2) -> 0.0037 | Z203: =(-X202) ->  | AA203: =(X204+X205+X206+X202) ->  | AB203: =(-X205) ->  | AC203: 0 | AD203: 0 | AE203: 0 | AF203: 0 | AG203: 0 | AH203: 0 | AI203: 0 | AK203: 0 | AO203: R3 | AP203: =(AR196/10/2) -> 0.0037 | AR203: =(-AP202) -> -3949.044586 | AS203: =(AP204+AP205+AP206+AP202) -> 7898.096572 | AT203: =(-AP205) -> -3949.044586 | AU203: 0 | AV203: 0 | AW203: 0 | AX203: 0 | AY203: 0 | AZ203: 0 | BA203: 0 | BC203: 0
G204: 1765 | H204: 3000 | I204: 880 | J204: 2000 | K204: 1190 | L204: 3000 | M204: 595 | N204: 1350 | O204: 700 | P204: 300 | W204: R4 | X204: =(Z196/10/2) -> 0.0037 | Z204: 0 | AA204: =(-X205) ->  | AB204: =(X207+X208+X209+X205) ->  | AC204: =(-X208) ->  | AD204: 0 | AE204: 0 | AF204: 0 | AG204: 0 | AH204: 0 | AI204: 0 | AK204: 0 | AO204: R4 | AP204: =(AR196/10/2) -> 0.0037 | AR204: 0 | AS204: =(-AP205) -> -3949.044586 | AT204: =(AP207+AP208+AP209+AP205) -> 7898.096572 | AU204: =(-AP208) -> -3949.044586 | AV204: 0 | AW204: 0 | AX204: 0 | AY204: 0 | AZ204: 0 | BA204: 0 | BC204: 0
G205: 2000 | H205: 3000 | I205: 1030 | J205: 1540 | K205: 1380 | L205: 2000 | M205: 695 | N205: 1040 | O205: 600 | P205: 400 | V205: 2 | W205: R5 | X205: =(31/(Z198/10)) ->  | Z205: 0 | AA205: 0 | AB205: =(-X208) ->  | AC205: =(X210+X211+X212+X208) ->  | AD205: =(-X211) ->  | AE205: 0 | AF205: 0 | AG205: 0 | AH205: 0 | AI205: 0 | AK205: 0 | AO205: R5 | AP205: =(31/(AR198/10)) -> 3949.044586 | AR205: 0 | AS205: 0 | AT205: =(-AP208) -> -3949.044586 | AU205: =(AP210+AP211+AP212+AP208) -> 7898.096572 | AV205: =(-AP211) -> -3949.044586 | AW205: 0 | AX205: 0 | AY205: 0 | AZ205: 0 | BA205: 0 | BC205: 0
G206: 2000 | H206: 3000 | I206: 1235 | J206: 1235 | K206: 1670 | L206: 1670 | M206: 835 | N206: 835 | O206: 500 | P206: 500 | W206: R6 | X206: =(Z196/10/2) -> 0.0037 | Z206: 0 | AA206: 0 | AB206: 0 | AC206: =(-X211) ->  | AD206: =(X213+X214+X215+X211) ->  | AE206: =(-X214) ->  | AF206: 0 | AG206: 0 | AH206: 0 | AI206: 0 | AK206: 0 | AO206: R6 | AP206: =(AR196/10/2) -> 0.0037 | AR206: 0 | AS206: 0 | AT206: 0 | AU206: =(-AP211) -> -3949.044586 | AV206: =(AP213+AP214+AP215+AP211) -> 7898.096572 | AW206: =(-AP214) -> -3949.044586 | AX206: 0 | AY206: 0 | AZ206: 0 | BA206: 0 | BC206: 0
G207: 2000 | H207: 2000 | I207: 1540 | J207: 1030 | K207: 2000 | L207: 1380 | M207: 1040 | N207: 695 | O207: 400 | P207: 600 | W207: R7 | X207: =(Z196/10/2) -> 0.0037 | Z207: 0 | AA207: 0 | AB207: 0 | AC207: 0 | AD207: =(-X214) ->  | AE207: =(X216+X217+X218+X214) ->  | AF207: =(-X217) ->  | AG207: 0 | AH207: 0 | AI207: 0 | AK207: 0 | AO207: R7 | AP207: =(AR196/10/2) -> 0.0037 | AR207: 0 | AS207: 0 | AT207: 0 | AU207: 0 | AV207: =(-AP214) -> -3949.044586 | AW207: =(AP216+AP217+AP218+AP214) -> 7898.096572 | AX207: =(-AP217) -> -3949.044586 | AY207: 0 | AZ207: 0 | BA207: 0 | BC207: 0
G208: 2000 | H208: 1765 | I208: 2000 | J208: 880 | K208: 2000 | L208: 1190 | M208: 1350 | N208: 595 | O208: 300 | P208: 700 | V208: 3 | W208: R8 | X208: =(31/(Z198/10)) ->  | Z208: 0 | AA208: 0 | AB208: 0 | AC208: 0 | AD208: 0 | AE208: =(-X217) ->  | AF208: =(X216+X217+X218+X214) ->  | AG208: =(-X220) ->  | AH208: 0 | AI208: 0 | AK208: 0 | AO208: R8 | AP208: =(31/(AR198/10)) -> 3949.044586 | AR208: 0 | AS208: 0 | AT208: 0 | AU208: 0 | AV208: 0 | AW208: =(-AP217) -> -3949.044586 | AX208: =(AP216+AP217+AP218+AP214) -> 7898.096572 | AY208: =(-AP220) -> -3949.044586 | AZ208: 0 | BA208: 0 | BC208: 0
G209: 2000 | H209: 1540 | I209: 2000 | J209: 770 | K209: 2000 | L209: 1040 | M209: 2000 | N209: 520 | O209: 200 | P209: 800 | W209: R9 | X209: =(Z196/10/2) -> 0.0037 | Z209: 0 | AA209: 0 | AB209: 0 | AC209: 0 | AD209: 0 | AE209: 0 | AF209: =(-X220) ->  | AG209: =(X222+X223+X224+X220) ->  | AH209: =(-X223) ->  | AI209: 0 | AK209: 0 | AO209: R9 | AP209: =(AR196/10/2) -> 0.0037 | AR209: 0 | AS209: 0 | AT209: 0 | AU209: 0 | AV209: 0 | AW209: 0 | AX209: =(-AP220) -> -3949.044586 | AY209: =(AP222+AP223+AP224+AP220) -> 7898.096572 | AZ209: =(-AP223) -> -3949.044586 | BA209: 0 | BC209: 0
G210: 2000 | H210: 1370 | I210: 2000 | J210: 680 | K210: 2000 | L210: 925 | M210: 2000 | N210: 460 | O210: 100 | P210: 900 | W210: R10 | X210: =(Z196/10/2) -> 0.0037 | Z210: 0 | AA210: 0 | AB210: 0 | AC210: 0 | AD210: 0 | AE210: 0 | AF210: 0 | AG210: =(-X223) ->  | AH210: =(X225+X226+X227+X223) ->  | AI210: =(-X226) ->  | AK210: 0 | AO210: R10 | AP210: =(AR196/10/2) -> 0.0037 | AR210: 0 | AS210: 0 | AT210: 0 | AU210: 0 | AV210: 0 | AW210: 0 | AX210: 0 | AY210: =(-AP223) -> -3949.044586 | AZ210: =(AP225+AP226+AP227+AP223) -> 7898.096572 | BA210: =(-AP226) -> -3949.044586 | BC210: 0
G211: 2000 | H211: 1230 | I211: 2000 | J211: 610 | K211: 2000 | L211: 835 | M211: 2000 | N211: 415 | O211: 0 | P211: 1000 | V211: 4 | W211: R11 | X211: =(31/(Z198/10)) ->  | Z211: 0 | AA211: 0 | AB211: 0 | AC211: 0 | AD211: 0 | AE211: 0 | AF211: 0 | AG211: 0 | AH211: =(-X226) ->  | AI211: =(X228+X229+X230+X226) ->  | AK211: 0 | AO211: R11 | AP211: =(31/(AR198/10)) -> 3949.044586 | AR211: 0 | AS211: 0 | AT211: 0 | AU211: 0 | AV211: 0 | AW211: 0 | AX211: 0 | AY211: 0 | AZ211: =(-AP226) -> -3949.044586 | BA211: =(AP228+AP229+AP230+AP226) -> 7898.096572 | BC211: 0
W212: R12 | X212: =(Z196/10/2) -> 0.0037 | AO212: R12 | AP212: =(AR196/10/2) -> 0.0037
W213: R13 | X213: =(Z196/10/2) -> 0.0037 | AO213: R13 | AP213: =(AR196/10/2) -> 0.0037
V214: 5 | W214: R14 | X214: =(31/(Z198/10)) ->  | Z214: =MINVERSE(Z202:AI211) ->  | AK214: =MMULT(_xlfn.ANCHORARRAY(Z214),AK202:AK211) ->  | AO214: R14 | AP214: =(31/(AR198/10)) -> 3949.044586 | AR214: =MINVERSE(AR202:BA211) -> 0.002532075392 | AS214: 0.002278854331 | AT214: 0.002025637539 | AU214: 0.001772424544 | AV214: 0.001519214869 | AW214: 0.001266008042 | AX214: 0.001012803587 | AY214: 0.0007596010294 | AZ214: 0.0005063998955 | BA214: 0.0002531997105 | BC214: =MMULT(_xlfn.ANCHORARRAY(AR214),BC202:BC211) -> 0.1012830157
W215: R15 | X215: =(Z196/10/2) -> 0.0037 | AO215: R15 | AP215: =(AR196/10/2) -> 0.0037 | AR215: 0.002278854331 | AS215: 0.002278858601 | AT215: 0.002025641335 | AU215: 0.001772427865 | AV215: 0.001519217716 | AW215: 0.001266010414 | AX215: 0.001012805485 | AY215: 0.0007596024528 | AZ215: 0.0005064008444 | BA215: 0.000253200185 | BC215: 0.09115417323
W216: R16 | X216: =(Z196/10/2) -> 0.0037 | AO216: R16 | AP216: =(AR196/10/2) -> 0.0037 | AR216: 0.002025637539 | AS216: 0.002025641335 | AT216: 0.002025648927 | AU216: 0.001772434508 | AV216: 0.00151922341 | AW216: 0.001266015159 | AX216: 0.00101280928 | AY216: 0.0007596052996 | AZ216: 0.0005064027423 | BA216: 0.0002532011339 | BC216: 0.08102550157
... 116 more rows
